Workbook

Sheet Layer Body Weight (g)
A1: Enter values in high-lighted yellow cells -- all other cells are calculated | H1: Breed: | I1: Hy-Line Pink
B3: Body weight. if there is no data, leave cells empty—do not enter a zero (0). | Q3: Standards will populate with breed selection | W3: Breed | Y3: Standards | Z3: Weekly wt. gain
B4: g | C4: Outside range | R4: Count | S4: g | T4: kg | U4: Unif % | V4: CV% | W4: Min | Y4: Max | Z4: Standard | AA4: Actual | AI4: Hidden | AJ4: Standard | AK4: Max | AL4: Min | AM4: Actual
A5: 1 | C5: =IF(B5=0,"",IF(B5="","",IF(B5>$J$8,"High",IF(B5<$J$9,"Low","")))) ->  | E5: Number of birds weighed | J5: =COUNTIF(B5:B104,">0") -> 0 | Q5: Week 15 | R5: =E$38 -> 0 | S5: =E$39 -> 0 | T5: =S5/1000 -> 0.000 | U5: =E$40 -> 0.0% | V5: =E$41 -> 0.0% | W5: =IF($I$1="Hy-Line W-36", Standards!K17, IF($I$1="Hy-Line Brown", Standards!B17, IF($I$1="Hy-Line W-80", Standards!T17, IF($I$1="Hy-Line Pink", Standards!AC17, IF($I$1="Hy-Line Silver Brown", Standards!AL17, IF($I$1="Hy-Line Sonia", Standards!AU17, 0)))))) -> 1310 | X5: =IF($I$1="Hy-Line W-36", Standards!L17, IF($I$1="Hy-Line Brown", Standards!C17, IF($I$1="Hy-Line W-80", Standards!U17, IF($I$1="Hy-Line Pink", Standards!AD17, IF($I$1="Hy-Line Silver Brown", Standards!AM17, IF($I$1="Hy-Line Sonia", Standards!AV17, 0)))))) -> – | Y5: =IF($I$1="Hy-Line W-36", Standards!M17, IF($I$1="Hy-Line Brown", Standards!D17, IF($I$1="Hy-Line W-80", Standards!V17, IF($I$1="Hy-Line Pink", Standards!AE17, IF($I$1="Hy-Line Silver Brown", Standards!AN17, IF($I$1="Hy-Line Sonia", Standards!AW17, 0)))))) -> 1350 | AA5: =IF(S5>0, S5, NA()) ->  | AH5: 15 | AI5: =IF(Y5>0, AL5, NA()) -> 1310 | AJ5: =IF(Y5>0, AK5-AL5, NA()) -> 40 | AK5: =IF(Y5>0, Y5, NA()) -> 1350 | AL5: =W5 -> 1310 | AM5: =IF(S5>0, S5, NA()) -> 
A6: =1+A5 -> 2 | Q6: Week 16 | R6: =F$38 -> 0 | S6: =F$39 -> 0 | T6: =S6/1000 -> 0.000 | U6: =F$40 -> 0.0% | V6: =F$41 -> 0.0% | W6: =IF($I$1="Hy-Line W-36", Standards!K18, IF($I$1="Hy-Line Brown", Standards!B18, IF($I$1="Hy-Line W-80", Standards!T18, IF($I$1="Hy-Line Pink", Standards!AC18, IF($I$1="Hy-Line Silver Brown", Standards!AL18, IF($I$1="Hy-Line Sonia", Standards!AU18, 0)))))) -> 1380 | Y6: =IF($I$1="Hy-Line W-36", Standards!M18, IF($I$1="Hy-Line Brown", Standards!D18, IF($I$1="Hy-Line W-80", Standards!V18, IF($I$1="Hy-Line Pink", Standards!AE18, IF($I$1="Hy-Line Silver Brown", Standards!AN18, IF($I$1="Hy-Line Sonia", Standards!AW18, 0)))))) -> 1420 | Z6: =IF(Y6>0, ((W6+Y6)/2)-((W5+Y5)/2), W6-W5) -> 70 | AA6: =IF(S6>0, S6-S5, NA()) ->  | AH6: 16 | AI6: =IF(Y6>0, AL6, NA()) -> 1380 | AJ6: =IF(Y6>0, AK6-AL6, NA()) -> 40 | AK6: =IF(Y6>0, Y6, NA()) -> 1420 | AL6: =W6 -> 1380 | AM6: =IF(S6>0, S6, NA()) -> 
A7: =1+A6 -> 3 | E7: Mean body weight | J7: =IFERROR(AVERAGE(B5:B104), 0) -> 0 | K7: g | Q7: Week 17 | R7: =G$38 -> 0 | S7: =G$39 -> 0 | T7: 0.000 | U7: =G$40 -> 0.0% | V7: =G$41 -> 0.0% | W7: =IF($I$1="Hy-Line W-36", Standards!K19, IF($I$1="Hy-Line Brown", Standards!B19, IF($I$1="Hy-Line W-80", Standards!T19, IF($I$1="Hy-Line Pink", Standards!AC19, IF($I$1="Hy-Line Silver Brown", Standards!AL19, IF($I$1="Hy-Line Sonia", Standards!AU19, 0)))))) -> 1440 | Y7: =IF($I$1="Hy-Line W-36", Standards!M19, IF($I$1="Hy-Line Brown", Standards!D19, IF($I$1="Hy-Line W-80", Standards!V19, IF($I$1="Hy-Line Pink", Standards!AE19, IF($I$1="Hy-Line Silver Brown", Standards!AN19, IF($I$1="Hy-Line Sonia", Standards!AW19, 0)))))) -> 1480 | Z7: =IF(Y7>0, ((W7+Y7)/2)-((W6+Y6)/2), W7-W6) -> 60 | AA7: =IF(S7>0, S7-S6, NA()) ->  | AH7: 17 | AI7: 1440 | AJ7: 40 | AK7: 1480 | AL7: 1440
A8: 4 | E8: Mean + 10% | J8: =IF(J7>0, ROUND(J7*1.1,3), 0) -> 0 | K8: g | Q8: Week 18 | R8: =H$38 -> 0 | S8: =H$39 -> 0 | T8: 0.000 | U8: =H$40 -> 0.0% | V8: =H$41 -> 0.0% | W8: =IF($I$1="Hy-Line W-36", Standards!K20, IF($I$1="Hy-Line Brown", Standards!B20, IF($I$1="Hy-Line W-80", Standards!T20, IF($I$1="Hy-Line Pink", Standards!AC20, IF($I$1="Hy-Line Silver Brown", Standards!AL20, IF($I$1="Hy-Line Sonia", Standards!AU20, 0)))))) -> 1450 | Y8: =IF($I$1="Hy-Line W-36", Standards!M20, IF($I$1="Hy-Line Brown", Standards!D20, IF($I$1="Hy-Line W-80", Standards!V20, IF($I$1="Hy-Line Pink", Standards!AE20, IF($I$1="Hy-Line Silver Brown", Standards!AN20, IF($I$1="Hy-Line Sonia", Standards!AW20, 0)))))) -> 1550 | Z8: 40 | AH8: 18 | AI8: 1450 | AJ8: 100 | AK8: 1550 | AL8: 1450
A9: 5 | E9: Mean – 10% | J9: =ROUND(J7*0.9,3) -> 0 | K9: g | Q9: Week 19 | R9: =I$38 -> 0 | S9: =I$39 -> 0 | T9: 0.000 | U9: =I$40 -> 0.0% | V9: =I$41 -> 0.0% | W9: =IF($I$1="Hy-Line W-36", Standards!K21, IF($I$1="Hy-Line Brown", Standards!B21, IF($I$1="Hy-Line W-80", Standards!T21, IF($I$1="Hy-Line Pink", Standards!AC21, IF($I$1="Hy-Line Silver Brown", Standards!AL21, IF($I$1="Hy-Line Sonia", Standards!AU21, 0)))))) -> 1490 | Y9: =IF($I$1="Hy-Line W-36", Standards!M21, IF($I$1="Hy-Line Brown", Standards!D21, IF($I$1="Hy-Line W-80", Standards!V21, IF($I$1="Hy-Line Pink", Standards!AE21, IF($I$1="Hy-Line Silver Brown", Standards!AN21, IF($I$1="Hy-Line Sonia", Standards!AW21, 0)))))) -> 1600 | Z9: 45 | AH9: 19 | AI9: 1490 | AJ9: 110 | AK9: 1600 | AL9: 1490
A10: 6 | Q10: Week 20 | R10: =J$38 -> 0 | S10: =J$39 -> 0 | T10: 0.000 | U10: =J$40 -> 0.0% | V10: =J$41 -> 0.0% | W10: =IF($I$1="Hy-Line W-36", Standards!K22, IF($I$1="Hy-Line Brown", Standards!B22, IF($I$1="Hy-Line W-80", Standards!T22, IF($I$1="Hy-Line Pink", Standards!AC22, IF($I$1="Hy-Line Silver Brown", Standards!AL22, IF($I$1="Hy-Line Sonia", Standards!AU22, 0)))))) -> 1590 | Y10: =IF($I$1="Hy-Line W-36", Standards!M22, IF($I$1="Hy-Line Brown", Standards!D22, IF($I$1="Hy-Line W-80", Standards!V22, IF($I$1="Hy-Line Pink", Standards!AE22, IF($I$1="Hy-Line Silver Brown", Standards!AN22, IF($I$1="Hy-Line Sonia", Standards!AW22, 0)))))) -> 1650 | Z10: 75 | AH10: 20 | AI10: 1590 | AJ10: 60 | AK10: 1650 | AL10: 1590
A11: 7 | E11: =CONCATENATE("Number of birds outside ",FIXED(J8,0)," and ",FIXED(J9,0)," g") -> Number of birds outside 0 and 0 g | J11: =COUNTIF(C5:C104,"High")+COUNTIF(C5:C104,"Low") -> 0 | Q11: Week 21 | R11: =K$38 -> 0 | S11: =K$39 -> 0 | T11: 0.000 | U11: =K$40 -> 0.0% | V11: =K$41 -> 0.0% | W11: =IF($I$1="Hy-Line W-36", Standards!K23, IF($I$1="Hy-Line Brown", Standards!B23, IF($I$1="Hy-Line W-80", Standards!T23, IF($I$1="Hy-Line Pink", Standards!AC23, IF($I$1="Hy-Line Silver Brown", Standards!AL23, IF($I$1="Hy-Line Sonia", Standards!AU23, 0)))))) -> 1670 | Y11: =IF($I$1="Hy-Line W-36", Standards!M23, IF($I$1="Hy-Line Brown", Standards!D23, IF($I$1="Hy-Line W-80", Standards!V23, IF($I$1="Hy-Line Pink", Standards!AE23, IF($I$1="Hy-Line Silver Brown", Standards!AN23, IF($I$1="Hy-Line Sonia", Standards!AW23, 0)))))) -> 1700 | Z11: 65 | AH11: 21 | AI11: 1670 | AJ11: 30 | AK11: 1700 | AL11: 1670
A12: 8 | E12: =CONCATENATE("Uniformity = ([",J5,"-",J11,"]/",J5,") x 100 = ") -> Uniformity = ([0-0]/0) x 100 = | J12: =IFERROR(ROUND(((J5-J11)/J5)*100,0), 0) -> 0 | K12: % | Q12: Week 22 | R12: =L$38 -> 0 | S12: =L$39 -> 0 | T12: 0.000 | U12: =L$40 -> 0.0% | V12: =L$41 -> 0.0% | W12: =IF($I$1="Hy-Line W-36", Standards!K24, IF($I$1="Hy-Line Brown", Standards!B24, IF($I$1="Hy-Line W-80", Standards!T24, IF($I$1="Hy-Line Pink", Standards!AC24, IF($I$1="Hy-Line Silver Brown", Standards!AL24, IF($I$1="Hy-Line Sonia", Standards!AU24, 0)))))) -> 1710 | Y12: =IF($I$1="Hy-Line W-36", Standards!M24, IF($I$1="Hy-Line Brown", Standards!D24, IF($I$1="Hy-Line W-80", Standards!V24, IF($I$1="Hy-Line Pink", Standards!AE24, IF($I$1="Hy-Line Silver Brown", Standards!AN24, IF($I$1="Hy-Line Sonia", Standards!AW24, 0)))))) -> 1750 | Z12: 45 | AH12: 22 | AI12: 1710 | AJ12: 40 | AK12: 1750 | AL12: 1710
A13: 9 | E13: =IFERROR(CONCATENATE("CV = (",TEXT(G19, "#.##"),"/",TEXT(J7,"#"),") x 100 = "), "CV%") -> CV% | J13: =IFERROR((G19/J7)*100, 0) -> 0.0 | K13: % | N13: Body weight Range | O13: Count | Q13: Week 23 | R13: =M$38 -> 0 | S13: =M$39 -> 0 | T13: 0.000 | U13: =M$40 -> 0.0% | V13: =M$41 -> 0.0% | W13: =IF($I$1="Hy-Line W-36", Standards!K25, IF($I$1="Hy-Line Brown", Standards!B25, IF($I$1="Hy-Line W-80", Standards!T25, IF($I$1="Hy-Line Pink", Standards!AC25, IF($I$1="Hy-Line Silver Brown", Standards!AL25, IF($I$1="Hy-Line Sonia", Standards!AU25, 0)))))) -> 1730 | Y13: =IF($I$1="Hy-Line W-36", Standards!M25, IF($I$1="Hy-Line Brown", Standards!D25, IF($I$1="Hy-Line W-80", Standards!V25, IF($I$1="Hy-Line Pink", Standards!AE25, IF($I$1="Hy-Line Silver Brown", Standards!AN25, IF($I$1="Hy-Line Sonia", Standards!AW25, 0)))))) -> 1800 | Z13: 35 | AH13: 23 | AI13: 1730 | AJ13: 70 | AK13: 1800 | AL13: 1730
A14: 10 | Q14: Week 24 | R14: =N$38 -> 0 | S14: =N$39 -> 0 | T14: 0.000 | U14: =N$40 -> 0.0% | V14: =N$41 -> 0.0% | W14: =IF($I$1="Hy-Line W-36", Standards!K26, IF($I$1="Hy-Line Brown", Standards!B26, IF($I$1="Hy-Line W-80", Standards!T26, IF($I$1="Hy-Line Pink", Standards!AC26, IF($I$1="Hy-Line Silver Brown", Standards!AL26, IF($I$1="Hy-Line Sonia", Standards!AU26, 0)))))) -> 1740 | Y14: =IF($I$1="Hy-Line W-36", Standards!M26, IF($I$1="Hy-Line Brown", Standards!D26, IF($I$1="Hy-Line W-80", Standards!V26, IF($I$1="Hy-Line Pink", Standards!AE26, IF($I$1="Hy-Line Silver Brown", Standards!AN26, IF($I$1="Hy-Line Sonia", Standards!AW26, 0)))))) -> 1830 | Z14: 20 | AH14: 24 | AI14: 1740 | AJ14: 90 | AK14: 1830 | AL14: 1740
A15: 11 | F15: Min | G15: =MIN(B5:B104)-0.0000001 -> -0.0 | H15: =ROUNDDOWN(G15,1) -> 0.0 | J15: Normal distr. Curve | N15: =CONCATENATE(FIXED(H15,0),"–",FIXED(J18,0)) -> 0–0 | O15: =COUNTIF($B$5:$B$105,"<"&J18)-COUNTIF($B$5:$B105,"<"&J17) -> 0 | Q15: Week 25 | R15: =O$38 -> 0 | S15: =O$39 -> 0 | T15: 0.000 | U15: =O$40 -> 0.0% | V15: =O$41 -> 0.0% | W15: =IF($I$1="Hy-Line W-36", Standards!K27, IF($I$1="Hy-Line Brown", Standards!B27, IF($I$1="Hy-Line W-80", Standards!T27, IF($I$1="Hy-Line Pink", Standards!AC27, IF($I$1="Hy-Line Silver Brown", Standards!AL27, IF($I$1="Hy-Line Sonia", Standards!AU27, 0)))))) -> 1760 | Y15: =IF($I$1="Hy-Line W-36", Standards!M27, IF($I$1="Hy-Line Brown", Standards!D27, IF($I$1="Hy-Line W-80", Standards!V27, IF($I$1="Hy-Line Pink", Standards!AE27, IF($I$1="Hy-Line Silver Brown", Standards!AN27, IF($I$1="Hy-Line Sonia", Standards!AW27, 0)))))) -> 1850 | Z15: 20 | AH15: 25 | AI15: 1760 | AJ15: 90 | AK15: 1850 | AL15: 1760
A16: 12 | F16: Max | G16: =MAX(B5:B104)+0.0000001 -> 0.0 | H16: =ROUNDUP(G16,1) -> 0.1 | J16: x | K16: y | N16: =CONCATENATE(FIXED(J18,0),"–",FIXED(J19,0)) -> 0–0 | O16: =COUNTIF($B$5:$B$105,"<"&J19)-COUNTIF($B$5:$B106,"<"&J18) -> 0 | Q16: Week 26 | R16: =P$38 -> 0 | S16: =P$39 -> 0 | T16: 0.000 | U16: =P$40 -> 0.0% | V16: =P$41 -> 0.0% | W16: =IF($I$1="Hy-Line W-36", Standards!K28, IF($I$1="Hy-Line Brown", Standards!B28, IF($I$1="Hy-Line W-80", Standards!T28, IF($I$1="Hy-Line Pink", Standards!AC28, IF($I$1="Hy-Line Silver Brown", Standards!AL28, IF($I$1="Hy-Line Sonia", Standards!AU28, 0)))))) -> 1770 | Y16: =IF($I$1="Hy-Line W-36", Standards!M28, IF($I$1="Hy-Line Brown", Standards!D28, IF($I$1="Hy-Line W-80", Standards!V28, IF($I$1="Hy-Line Pink", Standards!AE28, IF($I$1="Hy-Line Silver Brown", Standards!AN28, IF($I$1="Hy-Line Sonia", Standards!AW28, 0)))))) -> 1870 | Z16: 15 | AH16: 26 | AI16: 1770 | AJ16: 100 | AK16: 1870 | AL16: 1770
A17: 13 | F17: Intervals | G17: =ROUND((J7-G15)/5,3) -> 0.0 | H17: =ROUND((H16-H15)/10,3) -> 0.0 | J17: =H15 -> 0 | K17: =NORMDIST(J17,$J$7,$G$19,FALSE) ->  | N17: 0–0 | O17: =COUNTIF($B$5:$B$105,"<"&J20)-COUNTIF($B$5:$B107,"<"&J19) -> 0 | Q17: Week 27 | R17: =Q$38 -> 0 | S17: =Q$39 -> 0 | T17: 0.000 | U17: =Q$40 -> 0.0% | V17: =Q$41 -> 0.0% | W17: =IF($I$1="Hy-Line W-36", Standards!K29, IF($I$1="Hy-Line Brown", Standards!B29, IF($I$1="Hy-Line W-80", Standards!T29, IF($I$1="Hy-Line Pink", Standards!AC29, IF($I$1="Hy-Line Silver Brown", Standards!AL29, IF($I$1="Hy-Line Sonia", Standards!AU29, 0)))))) -> 1780 | Y17: =IF($I$1="Hy-Line W-36", Standards!M29, IF($I$1="Hy-Line Brown", Standards!D29, IF($I$1="Hy-Line W-80", Standards!V29, IF($I$1="Hy-Line Pink", Standards!AE29, IF($I$1="Hy-Line Silver Brown", Standards!AN29, IF($I$1="Hy-Line Sonia", Standards!AW29, 0)))))) -> 1890 | Z17: 15 | AH17: 27 | AI17: 1780 | AJ17: 110 | AK17: 1890 | AL17: 1780
A18: 14 | J18: =J17+$H$17 -> 0 | N18: 0–0 | O18: =COUNTIF($B$5:$B$105,"<"&J21)-COUNTIF($B$5:$B108,"<"&J20) -> 0 | Q18: Week 28 | R18: =R$38 -> 0 | S18: =R$39 -> 0 | T18: 0.000 | U18: =R$40 -> 0.0% | V18: =R$41 -> 0.0% | W18: =IF($I$1="Hy-Line W-36", Standards!K30, IF($I$1="Hy-Line Brown", Standards!B30, IF($I$1="Hy-Line W-80", Standards!T30, IF($I$1="Hy-Line Pink", Standards!AC30, IF($I$1="Hy-Line Silver Brown", Standards!AL30, IF($I$1="Hy-Line Sonia", Standards!AU30, 0)))))) -> 1800 | Y18: =IF($I$1="Hy-Line W-36", Standards!M30, IF($I$1="Hy-Line Brown", Standards!D30, IF($I$1="Hy-Line W-80", Standards!V30, IF($I$1="Hy-Line Pink", Standards!AE30, IF($I$1="Hy-Line Silver Brown", Standards!AN30, IF($I$1="Hy-Line Sonia", Standards!AW30, 0)))))) -> 1900 | Z18: 15 | AH18: 28 | AI18: 1800 | AJ18: 100 | AK18: 1900 | AL18: 1800
A19: 15 | F19: stdev | G19: =STDEV(B4:B105) ->  | J19: 0 | N19: 0–0 | O19: =COUNTIF($B$5:$B$105,"<"&J22)-COUNTIF($B$5:$B109,"<"&J21) -> 0 | Q19: Week 29 | R19: =S$38 -> 0 | S19: =S$39 -> 0 | T19: 0.000 | U19: =S$40 -> 0.0% | V19: =S$41 -> 0.0% | W19: =IF($I$1="Hy-Line W-36", Standards!K31, IF($I$1="Hy-Line Brown", Standards!B31, IF($I$1="Hy-Line W-80", Standards!T31, IF($I$1="Hy-Line Pink", Standards!AC31, IF($I$1="Hy-Line Silver Brown", Standards!AL31, IF($I$1="Hy-Line Sonia", Standards!AU31, 0)))))) -> 1810 | Y19: =IF($I$1="Hy-Line W-36", Standards!M31, IF($I$1="Hy-Line Brown", Standards!D31, IF($I$1="Hy-Line W-80", Standards!V31, IF($I$1="Hy-Line Pink", Standards!AE31, IF($I$1="Hy-Line Silver Brown", Standards!AN31, IF($I$1="Hy-Line Sonia", Standards!AW31, 0)))))) -> 1910 | Z19: 10 | AH19: 29 | AI19: 1810 | AJ19: 100 | AK19: 1910 | AL19: 1810
A20: 16 | J20: 0 | N20: 0–0 | O20: =COUNTIF($B$5:$B$105,"<"&J23)-COUNTIF($B$5:$B110,"<"&J22) -> 0 | Q20: Week 30 | R20: =T$38 -> 0 | S20: =T$39 -> 0 | T20: 0.000 | U20: =T$40 -> 0.0% | V20: =T$41 -> 0.0% | W20: =IF($I$1="Hy-Line W-36", Standards!K32, IF($I$1="Hy-Line Brown", Standards!B32, IF($I$1="Hy-Line W-80", Standards!T32, IF($I$1="Hy-Line Pink", Standards!AC32, IF($I$1="Hy-Line Silver Brown", Standards!AL32, IF($I$1="Hy-Line Sonia", Standards!AU32, 0)))))) -> 1820 | Y20: =IF($I$1="Hy-Line W-36", Standards!M32, IF($I$1="Hy-Line Brown", Standards!D32, IF($I$1="Hy-Line W-80", Standards!V32, IF($I$1="Hy-Line Pink", Standards!AE32, IF($I$1="Hy-Line Silver Brown", Standards!AN32, IF($I$1="Hy-Line Sonia", Standards!AW32, 0)))))) -> 1920 | Z20: 10 | AH20: 30 | AI20: 1820 | AJ20: 100 | AK20: 1920 | AL20: 1820
A21: 17 | J21: 0 | K21: =NORMDIST(J21,$J$7,$G$19,FALSE) ->  | N21: 0–0 | O21: =COUNTIF($B$5:$B$105,"<"&J24)-COUNTIF($B$5:$B111,"<"&J23) -> 0 | Q21: Week 31 | R21: =U$38 -> 0 | S21: =U$39 -> 0 | T21: 0.000 | U21: =U$40 -> 0.0% | V21: =U$41 -> 0.0% | W21: =IF($I$1="Hy-Line W-36", Standards!K33, IF($I$1="Hy-Line Brown", Standards!B33, IF($I$1="Hy-Line W-80", Standards!T33, IF($I$1="Hy-Line Pink", Standards!AC33, IF($I$1="Hy-Line Silver Brown", Standards!AL33, IF($I$1="Hy-Line Sonia", Standards!AU33, 0)))))) -> 1830 | Y21: =IF($I$1="Hy-Line W-36", Standards!M33, IF($I$1="Hy-Line Brown", Standards!D33, IF($I$1="Hy-Line W-80", Standards!V33, IF($I$1="Hy-Line Pink", Standards!AE33, IF($I$1="Hy-Line Silver Brown", Standards!AN33, IF($I$1="Hy-Line Sonia", Standards!AW33, 0)))))) -> 1930 | Z21: 10 | AH21: 31 | AI21: 1830 | AJ21: 100 | AK21: 1930 | AL21: 1830
A22: 18 | J22: 0 | N22: 0–0 | O22: =COUNTIF($B$5:$B$105,"<"&J25)-COUNTIF($B$5:$B112,"<"&J24) -> 0 | Q22: Week 32 | R22: =V$38 -> 0 | S22: =V$39 -> 0 | T22: 0.000 | U22: =V$40 -> 0.0% | V22: =V$41 -> 0.0% | W22: =IF($I$1="Hy-Line W-36", Standards!K34, IF($I$1="Hy-Line Brown", Standards!B34, IF($I$1="Hy-Line W-80", Standards!T34, IF($I$1="Hy-Line Pink", Standards!AC34, IF($I$1="Hy-Line Silver Brown", Standards!AL34, IF($I$1="Hy-Line Sonia", Standards!AU34, 0)))))) -> 1840 | Y22: =IF($I$1="Hy-Line W-36", Standards!M34, IF($I$1="Hy-Line Brown", Standards!D34, IF($I$1="Hy-Line W-80", Standards!V34, IF($I$1="Hy-Line Pink", Standards!AE34, IF($I$1="Hy-Line Silver Brown", Standards!AN34, IF($I$1="Hy-Line Sonia", Standards!AW34, 0)))))) -> 1930 | Z22: 5 | AH22: 32 | AI22: 1840 | AJ22: 90 | AK22: 1930 | AL22: 1840
A23: 19 | J23: 0 | N23: 0–0 | O23: =COUNTIF($B$5:$B$105,"<"&J26)-COUNTIF($B$5:$B113,"<"&J25) -> 0 | Q23: Week 33 | R23: =W$38 -> 0 | S23: =W$39 -> 0 | T23: 0.000 | U23: =W$40 -> 0.0% | V23: =W$41 -> 0.0% | W23: =IF($I$1="Hy-Line W-36", Standards!K35, IF($I$1="Hy-Line Brown", Standards!B35, IF($I$1="Hy-Line W-80", Standards!T35, IF($I$1="Hy-Line Pink", Standards!AC35, IF($I$1="Hy-Line Silver Brown", Standards!AL35, IF($I$1="Hy-Line Sonia", Standards!AU35, 0)))))) -> 1850 | Y23: =IF($I$1="Hy-Line W-36", Standards!M35, IF($I$1="Hy-Line Brown", Standards!D35, IF($I$1="Hy-Line W-80", Standards!V35, IF($I$1="Hy-Line Pink", Standards!AE35, IF($I$1="Hy-Line Silver Brown", Standards!AN35, IF($I$1="Hy-Line Sonia", Standards!AW35, 0)))))) -> 1940 | Z23: 10 | AH23: 35 | AI23: 1850 | AJ23: 90 | AK23: 1940 | AL23: 1850
A24: 20 | J24: 0 | N24: 0–0 | O24: =COUNTIF($B$5:$B$105,"<"&J27)-COUNTIF($B$5:$B114,"<"&J26) -> 0 | Q24: Week 34 | R24: =Y$38 -> 0 | S24: =Y$39 -> 0 | T24: 0.000 | U24: =Y$40 -> 0.0% | V24: =Y$41 -> 0.0% | W24: =IF($I$1="Hy-Line W-36", Standards!K36, IF($I$1="Hy-Line Brown", Standards!B36, IF($I$1="Hy-Line W-80", Standards!T36, IF($I$1="Hy-Line Pink", Standards!AC36, IF($I$1="Hy-Line Silver Brown", Standards!AL36, IF($I$1="Hy-Line Sonia", Standards!AU36, 0)))))) -> 1850 | Y24: =IF($I$1="Hy-Line W-36", Standards!M36, IF($I$1="Hy-Line Brown", Standards!D36, IF($I$1="Hy-Line W-80", Standards!V36, IF($I$1="Hy-Line Pink", Standards!AE36, IF($I$1="Hy-Line Silver Brown", Standards!AN36, IF($I$1="Hy-Line Sonia", Standards!AW36, 0)))))) -> 1940 | Z24: =IF(Y24>0, ((W24+Y24)/2)-((W23+Y23)/2), W24-W23) -> 0 | AA24: =IF(S24>0, S24-S23, NA()) ->  | AH24: 40 | AI24: 1850 | AJ24: 90 | AK24: 1940 | AL24: 1850
A25: 21 | J25: 0 | Q25: Week 35 | R25: =Z$38 -> 0 | S25: =Z$39 -> 0 | T25: 0.000 | U25: =Z$40 -> 0.0% | V25: =Z$41 -> 0.0% | W25: =IF($I$1="Hy-Line W-36", Standards!K37, IF($I$1="Hy-Line Brown", Standards!B37, IF($I$1="Hy-Line W-80", Standards!T37, IF($I$1="Hy-Line Pink", Standards!AC37, IF($I$1="Hy-Line Silver Brown", Standards!AL37, IF($I$1="Hy-Line Sonia", Standards!AU37, 0)))))) -> 1860 | Y25: =IF($I$1="Hy-Line W-36", Standards!M37, IF($I$1="Hy-Line Brown", Standards!D37, IF($I$1="Hy-Line W-80", Standards!V37, IF($I$1="Hy-Line Pink", Standards!AE37, IF($I$1="Hy-Line Silver Brown", Standards!AN37, IF($I$1="Hy-Line Sonia", Standards!AW37, 0)))))) -> 1950 | Z25: 10 | AH25: 45 | AI25: 1860 | AJ25: 90 | AK25: 1950 | AL25: 1860
A26: 22 | J26: 0 | N26: Total birds | O26: =SUM(O14:O25) -> 0 | P26: =IF(O26<>J5,"Something is wrong","") ->  | Q26: Week 36 | R26: =AA$38 -> 0 | S26: =AA$39 -> 0 | T26: 0.000 | U26: =AA$40 -> 0.0% | V26: =AA$41 -> 0.0% | W26: =IF($I$1="Hy-Line W-36", Standards!K38, IF($I$1="Hy-Line Brown", Standards!B38, IF($I$1="Hy-Line W-80", Standards!T38, IF($I$1="Hy-Line Pink", Standards!AC38, IF($I$1="Hy-Line Silver Brown", Standards!AL38, IF($I$1="Hy-Line Sonia", Standards!AU38, 0)))))) -> 1860 | Y26: =IF($I$1="Hy-Line W-36", Standards!M38, IF($I$1="Hy-Line Brown", Standards!D38, IF($I$1="Hy-Line W-80", Standards!V38, IF($I$1="Hy-Line Pink", Standards!AE38, IF($I$1="Hy-Line Silver Brown", Standards!AN38, IF($I$1="Hy-Line Sonia", Standards!AW38, 0)))))) -> 1950 | Z26: 0 | AH26: 50 | AI26: 1860 | AJ26: 90 | AK26: 1950 | AL26: 1860
A27: 23 | J27: 0 | Q27: Week 37 | R27: =AB$38 -> 0 | S27: =AB$39 -> 0 | T27: 0.000 | U27: =AB$40 -> 0.0% | V27: =AB$41 -> 0.0% | W27: =IF($I$1="Hy-Line W-36", Standards!K39, IF($I$1="Hy-Line Brown", Standards!B39, IF($I$1="Hy-Line W-80", Standards!T39, IF($I$1="Hy-Line Pink", Standards!AC39, IF($I$1="Hy-Line Silver Brown", Standards!AL39, IF($I$1="Hy-Line Sonia", Standards!AU39, 0)))))) -> 1860 | Y27: =IF($I$1="Hy-Line W-36", Standards!M39, IF($I$1="Hy-Line Brown", Standards!D39, IF($I$1="Hy-Line W-80", Standards!V39, IF($I$1="Hy-Line Pink", Standards!AE39, IF($I$1="Hy-Line Silver Brown", Standards!AN39, IF($I$1="Hy-Line Sonia", Standards!AW39, 0)))))) -> 1950 | Z27: 0 | AH27: 60 | AI27: 1860 | AJ27: 90 | AK27: 1950 | AL27: 1860
A28: 24 | Q28: Week 38 | R28: =AC$38 -> 0 | S28: =AC$39 -> 0 | T28: 0.000 | U28: =AC$40 -> 0.0% | V28: =AC$41 -> 0.0% | W28: =IF($I$1="Hy-Line W-36", Standards!K40, IF($I$1="Hy-Line Brown", Standards!B40, IF($I$1="Hy-Line W-80", Standards!T40, IF($I$1="Hy-Line Pink", Standards!AC40, IF($I$1="Hy-Line Silver Brown", Standards!AL40, IF($I$1="Hy-Line Sonia", Standards!AU40, 0)))))) -> 1870 | Y28: =IF($I$1="Hy-Line W-36", Standards!M40, IF($I$1="Hy-Line Brown", Standards!D40, IF($I$1="Hy-Line W-80", Standards!V40, IF($I$1="Hy-Line Pink", Standards!AE40, IF($I$1="Hy-Line Silver Brown", Standards!AN40, IF($I$1="Hy-Line Sonia", Standards!AW40, 0)))))) -> 1950 | Z28: 5 | AH28: 70 | AI28: 1870 | AJ28: 80 | AK28: 1950 | AL28: 1870
A29: 25 | Q29: Week 39 | R29: =AD$38 -> 0 | S29: =AD$39 -> 0 | T29: 0.000 | U29: =AD$40 -> 0.0% | V29: =AD$41 -> 0.0% | W29: =IF($I$1="Hy-Line W-36", Standards!K41, IF($I$1="Hy-Line Brown", Standards!B41, IF($I$1="Hy-Line W-80", Standards!T41, IF($I$1="Hy-Line Pink", Standards!AC41, IF($I$1="Hy-Line Silver Brown", Standards!AL41, IF($I$1="Hy-Line Sonia", Standards!AU41, 0)))))) -> 1870 | Y29: =IF($I$1="Hy-Line W-36", Standards!M41, IF($I$1="Hy-Line Brown", Standards!D41, IF($I$1="Hy-Line W-80", Standards!V41, IF($I$1="Hy-Line Pink", Standards!AE41, IF($I$1="Hy-Line Silver Brown", Standards!AN41, IF($I$1="Hy-Line Sonia", Standards!AW41, 0)))))) -> 1950 | Z29: 0 | AH29: 80 | AI29: 1870 | AJ29: 80 | AK29: 1950 | AL29: 1870
A30: 26 | Q30: Week 40 | R30: =AE$38 -> 0 | S30: =AE$39 -> 0 | T30: 0.000 | U30: =AE$40 -> 0.0% | V30: =AE$41 -> 0.0% | W30: =IF($I$1="Hy-Line W-36", Standards!K42, IF($I$1="Hy-Line Brown", Standards!B42, IF($I$1="Hy-Line W-80", Standards!T42, IF($I$1="Hy-Line Pink", Standards!AC42, IF($I$1="Hy-Line Silver Brown", Standards!AL42, IF($I$1="Hy-Line Sonia", Standards!AU42, 0)))))) -> 1870 | Y30: =IF($I$1="Hy-Line W-36", Standards!M42, IF($I$1="Hy-Line Brown", Standards!D42, IF($I$1="Hy-Line W-80", Standards!V42, IF($I$1="Hy-Line Pink", Standards!AE42, IF($I$1="Hy-Line Silver Brown", Standards!AN42, IF($I$1="Hy-Line Sonia", Standards!AW42, 0)))))) -> 1950 | Z30: 0 | AH30: 90 | AK30: 1950 | AL30: =NA() -> 
A31: 27 | H31: NORMINV(rand(),mean,standard_dev) | Q31: Week 41 | R31: =AF$38 -> 0 | S31: =AF$39 -> 0 | T31: 0.000 | U31: =AF$40 -> 0.0% | V31: =AF$41 -> 0.0% | W31: =IF($I$1="Hy-Line W-36", Standards!K43, IF($I$1="Hy-Line Brown", Standards!B43, IF($I$1="Hy-Line W-80", Standards!T43, IF($I$1="Hy-Line Pink", Standards!AC43, IF($I$1="Hy-Line Silver Brown", Standards!AL43, IF($I$1="Hy-Line Sonia", Standards!AU43, 0)))))) -> 1870 | Y31: =IF($I$1="Hy-Line W-36", Standards!M43, IF($I$1="Hy-Line Brown", Standards!D43, IF($I$1="Hy-Line W-80", Standards!V43, IF($I$1="Hy-Line Pink", Standards!AE43, IF($I$1="Hy-Line Silver Brown", Standards!AN43, IF($I$1="Hy-Line Sonia", Standards!AW43, 0)))))) -> 1950 | Z31: 0 | AH31: 100 | AK31: 1950 | AL31: =NA() -> 
A32: 28 | Q32: Week 42 | R32: =AG$38 -> 0 | S32: =AG$39 -> 0 | T32: 0.000 | U32: =AG$40 -> 0.0% | V32: =AG$41 -> 0.0% | W32: =IF($I$1="Hy-Line W-36", Standards!K44, IF($I$1="Hy-Line Brown", Standards!B44, IF($I$1="Hy-Line W-80", Standards!T44, IF($I$1="Hy-Line Pink", Standards!AC44, IF($I$1="Hy-Line Silver Brown", Standards!AL44, IF($I$1="Hy-Line Sonia", Standards!AU44, 0)))))) -> 1870 | Y32: =IF($I$1="Hy-Line W-36", Standards!M44, IF($I$1="Hy-Line Brown", Standards!D44, IF($I$1="Hy-Line W-80", Standards!V44, IF($I$1="Hy-Line Pink", Standards!AE44, IF($I$1="Hy-Line Silver Brown", Standards!AN44, IF($I$1="Hy-Line Sonia", Standards!AW44, 0)))))) -> 1950 | Z32: 0 | AH32: 110 | AK32: 1950 | AL32: =NA() -> 
A33: 29
A34: 30
A35: 31
A36: 32 | D36: Body Weights - copy and "paste special" data values into column B for each week to obtain graphs
A37: 33 | D37: Bird # | E37: Week 15 | F37: Week 16 | G37: Week 17 | H37: Week 18 | I37: Week 19 | J37: Week 20 | K37: Week 21 | L37: Week 22 | M37: Week 23 | N37: Week 24 | O37: Week 25 | P37: Week 26 | Q37: Week 27 | R37: Week 28 | S37: Week 29 | T37: Week 30 | U37: Week 31 | V37: Week 32 | W37: Week 33 | Y37: Week 34 | Z37: Week 35 | AA37: Week 36 | AB37: Week 37 | AC37: Week 38 | AD37: Week 39 | AE37: Week 40 | AF37: Week 41 | AG37: Week 42
A38: 34 | D38: Count | E38: =COUNTIF(E42:E141, ">0") -> 0 | F38: =COUNTIF(F42:F141, ">0") -> 0 | G38: 0 | H38: 0 | I38: 0 | J38: 0 | K38: 0 | L38: 0 | M38: 0 | N38: 0 | O38: 0 | P38: 0 | Q38: 0 | R38: 0 | S38: 0 | T38: 0 | U38: 0 | V38: 0 | W38: 0 | Y38: 0 | Z38: 0 | AA38: 0 | AB38: 0 | AC38: 0 | AD38: 0 | AE38: 0 | AF38: 0 | AG38: 0
A39: 35 | D39: Average | E39: =IFERROR(AVERAGE(E42:E141), 0) -> 0 | F39: =IFERROR(AVERAGE(F42:F141), 0) -> 0 | G39: 0 | H39: 0 | I39: 0 | J39: 0 | K39: 0 | L39: 0 | M39: 0 | N39: 0 | O39: 0 | P39: 0 | Q39: 0 | R39: 0 | S39: 0 | T39: 0 | U39: 0 | V39: 0 | W39: 0 | Y39: 0 | Z39: 0 | AA39: 0 | AB39: 0 | AC39: 0 | AD39: 0 | AE39: 0 | AF39: 0 | AG39: 0
A40: 36 | D40: Uniformity | E40: =IFERROR((E38-E144)/E38, 0) -> 0.0% | F40: =IFERROR((F38-F144)/F38, 0) -> 0.0% | G40: 0.0% | H40: 0.0% | I40: 0.0% | J40: 0.0% | K40: 0.0% | L40: 0.0% | M40: 0.0% | N40: 0.0% | O40: 0.0% | P40: 0.0% | Q40: 0.0% | R40: 0.0% | S40: 0.0% | T40: 0.0% | U40: 0.0% | V40: 0.0% | W40: 0.0% | Y40: 0.0% | Z40: 0.0% | AA40: 0.0% | AB40: 0.0% | AC40: 0.0% | AD40: 0.0% | AE40: 0.0% | AF40: 0.0% | AG40: 0.0%
A41: 37 | D41: CV% | E41: =IFERROR(STDEV(E42:E141)/E39, 0) -> 0.0% | F41: =IFERROR(STDEV(F42:F141)/F39, 0) -> 0.0% | G41: 0.0% | H41: 0.0% | I41: 0.0% | J41: 0.0% | K41: 0.0% | L41: 0.0% | M41: 0.0% | N41: 0.0% | O41: 0.0% | P41: 0.0% | Q41: 0.0% | R41: 0.0% | S41: 0.0% | T41: 0.0% | U41: 0.0% | V41: 0.0% | W41: 0.0% | Y41: 0.0% | Z41: 0.0% | AA41: 0.0% | AB41: 0.0% | AC41: 0.0% | AD41: 0.0% | AE41: 0.0% | AF41: 0.0% | AG41: 0.0%
A42: 38 | D42: 1
A43: 39 | D43: 2
A44: 40 | D44: 3
A45: 41 | D45: 4
A46: 42 | D46: 5
A47: 43 | D47: 6
A48: 44 | D48: 7
A49: 45 | D49: 8
A50: 46 | D50: 9
A51: 47 | D51: 10
A52: 48 | D52: 11
A53: 49 | D53: 12
A54: 50 | D54: 13
A55: 51 | D55: 14
A56: 52 | D56: 15
A57: 53 | D57: 16
A58: 54 | D58: 17
A59: 55 | D59: 18
A60: 56 | D60: 19
A61: 57 | D61: 20
A62: 58 | D62: 21
A63: 59 | D63: 22
A64: 60 | D64: 23
A65: 61 | D65: 24
A66: 62 | D66: 25
A67: 63 | D67: 26
A68: 64 | D68: 27
A69: 65 | C69: =IF(B69=0,"",IF(B69="","",IF(B69>$J$8,"High",IF(B69<$J$9,"Low","")))) ->  | D69: 28
A70: 66 | D70: 29
A71: =1+A70 -> 67 | D71: 30
A72: 68 | D72: 31
A73: 69 | D73: 32
A74: 70 | D74: 33
A75: 71 | D75: 34
A76: 72 | D76: 35
A77: 73 | D77: 36
A78: 74 | D78: 37
A79: 75 | D79: 38
A80: 76 | D80: 39
A81: 77 | D81: 40
A82: 78 | D82: 41
A83: 79 | D83: 42
A84: 80 | D84: 43
A85: 81 | D85: 44
A86: 82 | D86: 45
A87: 83 | D87: 46
A88: 84 | D88: 47
A89: 85 | D89: 48
A90: 86 | D90: 49
A91: 87 | D91: 50
A92: 88 | D92: 51
A93: 89 | D93: 52
A94: 90 | D94: 53
A95: 91 | D95: 54
A96: 92 | D96: 55
A97: 93 | D97: 56
A98: 94 | D98: 57
A99: 95 | D99: 58
A100: 96 | D100: 59
A101: 97 | D101: 60
A102: 98 | D102: 61
A103: 99 | D103: 62
A104: 100 | D104: 63
D105: 64
D106: 65
D107: 66
D108: 67
D109: 68
D110: 69
D111: 70
D112: 71
D113: 72
D114: 73
D115: 74
D116: 75
D117: 76
D118: 77
D119: 78
D120: 79
D121: 80
D122: 81
D123: 82
D124: 83
D125: 84
D126: 85
D127: 86
D128: 87
D129: 88
D130: 89
D131: 90
D132: 91
D133: 92
D134: 93
D135: 94
D136: 95
D137: 96
D138: 97
D139: 98
D140: 99
D141: 100
E142: =ROUND(E39*1.1, 3) -> 0 | F142: =ROUND(F39*1.1, 3) -> 0 | G142: 0 | H142: 0 | I142: 0 | J142: 0 | K142: 0 | L142: 0 | M142: 0 | N142: 0 | O142: 0 | P142: 0 | Q142: 0 | R142: 0 | S142: 0 | T142: 0 | V142: 0 | W142: 0
E143: =ROUND(E39*0.9, 3) -> 0 | F143: =ROUND(F39*0.9, 3) -> 0 | G143: 0 | H143: 0 | I143: 0 | J143: 0 | K143: 0 | L143: 0 | M143: 0 | N143: 0 | O143: 0 | P143: 0 | Q143: 0 | R143: 0 | S143: 0 | T143: 0 | V143: 0 | W143: 0
E144: =COUNTIF(E42:E141, ">"&E142)+COUNTIF(E42:E141, "<"&E143) -> 0 | F144: =COUNTIF(F42:F141, ">"&F142)+COUNTIF(F42:F141, "<"&F143) -> 0 | G144: 0 | H144: 0 | I144: 0 | J144: 0 | K144: 0 | L144: 0 | M144: 0 | N144: 0 | O144: 0 | P144: 0 | Q144: 0 | R144: 0 | S144: 0 | T144: 0 | V144: 0 | W144: 0

Sheet Layer Body Weight (kg)
A1: Enter values in high-lighted yellow cells -- all other cells are calculated | H1: Breed: | I1: Hy-Line Brown
B3: Body weight. if there is no data, leave cells empty—do not enter a zero (0). | Q3: Standards will populate with breed selection | W3: Breed | Y3: Standards | Z3: Weekly wt. gain
B4: kg | C4: Outside range | R4: Count | S4: kg | T4: g | U4: Unif % | V4: CV% | W4: Min | Y4: Max | Z4: Standard | AA4: Actual | AI4: Hidden | AJ4: Standard | AK4: Max | AL4: Min | AM4: Actual
A5: 1 | C5: =IF(B5=0,"",IF(B5="","",IF(B5>$J$8,"High",IF(B5<$J$9,"Low","")))) ->  | E5: Number of birds weighed | J5: =COUNTIF(B5:B104,">0") -> 0 | Q5: Week 15 | R5: =E$38 -> 0 | S5: =E$39 -> 0.000 | T5: =S5*1000 -> 0 | U5: =E$40 -> 0.0% | V5: =E$41 -> 0.0% | W5: =IF($I$1="Hy-Line W-36", Standards!O17, IF($I$1="Hy-Line Brown", Standards!F17, IF($I$1="Hy-Line W-80", Standards!X17, IF($I$1="Hy-Line Pink", Standards!AG17, IF($I$1="Hy-Line Silver Brown", Standards!AP17, IF($I$1="Hy-Line Sonia", Standards!AY17, 0)))))) -> 1.290 | X5: =IF($I$1="Hy-Line W-36", Standards!P17, IF($I$1="Hy-Line Brown", Standards!G17, IF($I$1="Hy-Line W-80", Standards!Y17, IF($I$1="Hy-Line Pink", Standards!AH17, IF($I$1="Hy-Line Silver Brown", Standards!AQ17, IF($I$1="Hy-Line Sonia", Standards!AZ17, 0)))))) -> – | Y5: =IF($I$1="Hy-Line W-36", Standards!Q17, IF($I$1="Hy-Line Brown", Standards!H17, IF($I$1="Hy-Line W-80", Standards!Z17, IF($I$1="Hy-Line Pink", Standards!AI17, IF($I$1="Hy-Line Silver Brown", Standards!AR17, IF($I$1="Hy-Line Sonia", Standards!BA17, 0)))))) -> 1.360 | AA5: =IF(S5>0, S5, NA()) ->  | AI5: =IF(Y5>0, AL5, NA()) -> 1.290 | AJ5: =IF(Y5>0, AK5-AL5, NA()) -> 0.070 | AK5: =IF(Y5>0, Y5, NA()) -> 1.360 | AL5: =W5 -> 1.290 | AM5: =IF(S5>0, S5, NA()) -> 
A6: =1+A5 -> 2 | Q6: Week 16 | R6: =F$38 -> 0 | S6: =F$39 -> 0.000 | T6: =S6*1000 -> 0 | U6: =F$40 -> 0.0% | V6: =F$41 -> 0.0% | W6: =IF($I$1="Hy-Line W-36", Standards!O18, IF($I$1="Hy-Line Brown", Standards!F18, IF($I$1="Hy-Line W-80", Standards!X18, IF($I$1="Hy-Line Pink", Standards!AG18, IF($I$1="Hy-Line Silver Brown", Standards!AP18, IF($I$1="Hy-Line Sonia", Standards!AY18, 0)))))) -> 1.360 | X6: =IF($I$1="Hy-Line W-36", Standards!P18, IF($I$1="Hy-Line Brown", Standards!G18, IF($I$1="Hy-Line W-80", Standards!Y18, IF($I$1="Hy-Line Pink", Standards!AH18, IF($I$1="Hy-Line Silver Brown", Standards!AQ18, IF($I$1="Hy-Line Sonia", Standards!AZ18, 0)))))) -> – | Y6: =IF($I$1="Hy-Line W-36", Standards!Q18, IF($I$1="Hy-Line Brown", Standards!H18, IF($I$1="Hy-Line W-80", Standards!Z18, IF($I$1="Hy-Line Pink", Standards!AI18, IF($I$1="Hy-Line Silver Brown", Standards!AR18, IF($I$1="Hy-Line Sonia", Standards!BA18, 0)))))) -> 1.430 | Z6: =IF(Y6>0, ((W6+Y6)/2)-((W5+Y5)/2), W6-W5) -> 0.070 | AA6: =IF(S6>0, S6-S5, NA()) ->  | AI6: =IF(Y6>0, AL6, NA()) -> 1.360 | AJ6: =IF(Y6>0, AK6-AL6, NA()) -> 0.070 | AK6: =IF(Y6>0, Y6, NA()) -> 1.430 | AL6: =W6 -> 1.360 | AM6: =IF(S6>0, S6, NA()) -> 
A7: =1+A6 -> 3 | E7: Mean body weight | J7: =IFERROR(AVERAGE(B5:B104), 0) -> 0.000 | K7: kg | Q7: Week 17 | R7: =G$38 -> 0 | S7: =G$39 -> 0.000 | T7: 0 | U7: =G$40 -> 0.0% | V7: =G$41 -> 0.0% | W7: =IF($I$1="Hy-Line W-36", Standards!O19, IF($I$1="Hy-Line Brown", Standards!F19, IF($I$1="Hy-Line W-80", Standards!X19, IF($I$1="Hy-Line Pink", Standards!AG19, IF($I$1="Hy-Line Silver Brown", Standards!AP19, IF($I$1="Hy-Line Sonia", Standards!AY19, 0)))))) -> 1.420 | X7: =IF($I$1="Hy-Line W-36", Standards!P19, IF($I$1="Hy-Line Brown", Standards!G19, IF($I$1="Hy-Line W-80", Standards!Y19, IF($I$1="Hy-Line Pink", Standards!AH19, IF($I$1="Hy-Line Silver Brown", Standards!AQ19, IF($I$1="Hy-Line Sonia", Standards!AZ19, 0)))))) -> – | Y7: =IF($I$1="Hy-Line W-36", Standards!Q19, IF($I$1="Hy-Line Brown", Standards!H19, IF($I$1="Hy-Line W-80", Standards!Z19, IF($I$1="Hy-Line Pink", Standards!AI19, IF($I$1="Hy-Line Silver Brown", Standards!AR19, IF($I$1="Hy-Line Sonia", Standards!BA19, 0)))))) -> 1.500 | Z7: =IF(Y7>0, ((W7+Y7)/2)-((W6+Y6)/2), W7-W6) -> 0.065 | AA7: =IF(S7>0, S7-S6, NA()) ->  | AI7: 1.420 | AJ7: 0.080 | AK7: 1.500 | AL7: 1.420
A8: 4 | E8: Mean + 10% | J8: =IF(J7>0, ROUND(J7*1.1,3), 0) -> 0.000 | K8: kg | Q8: Week 18 | R8: =H$38 -> 0 | S8: =H$39 -> 0.000 | T8: 0 | U8: =H$40 -> 0.0% | V8: =H$41 -> 0.0% | W8: =IF($I$1="Hy-Line W-36", Standards!O20, IF($I$1="Hy-Line Brown", Standards!F20, IF($I$1="Hy-Line W-80", Standards!X20, IF($I$1="Hy-Line Pink", Standards!AG20, IF($I$1="Hy-Line Silver Brown", Standards!AP20, IF($I$1="Hy-Line Sonia", Standards!AY20, 0)))))) -> 1.490 | X8: =IF($I$1="Hy-Line W-36", Standards!P20, IF($I$1="Hy-Line Brown", Standards!G20, IF($I$1="Hy-Line W-80", Standards!Y20, IF($I$1="Hy-Line Pink", Standards!AH20, IF($I$1="Hy-Line Silver Brown", Standards!AQ20, IF($I$1="Hy-Line Sonia", Standards!AZ20, 0)))))) -> – | Y8: =IF($I$1="Hy-Line W-36", Standards!Q20, IF($I$1="Hy-Line Brown", Standards!H20, IF($I$1="Hy-Line W-80", Standards!Z20, IF($I$1="Hy-Line Pink", Standards!AI20, IF($I$1="Hy-Line Silver Brown", Standards!AR20, IF($I$1="Hy-Line Sonia", Standards!BA20, 0)))))) -> 1.610 | Z8: 0.090 | AI8: 1.490 | AJ8: 0.120 | AK8: 1.610 | AL8: 1.490
A9: 5 | E9: Mean – 10% | J9: =ROUND(J7*0.9,3) -> 0.000 | K9: kg | Q9: Week 19 | R9: =I$38 -> 0 | S9: =I$39 -> 0.000 | T9: 0 | U9: =I$40 -> 0.0% | V9: =I$41 -> 0.0% | W9: =IF($I$1="Hy-Line W-36", Standards!O21, IF($I$1="Hy-Line Brown", Standards!F21, IF($I$1="Hy-Line W-80", Standards!X21, IF($I$1="Hy-Line Pink", Standards!AG21, IF($I$1="Hy-Line Silver Brown", Standards!AP21, IF($I$1="Hy-Line Sonia", Standards!AY21, 0)))))) -> 1.590 | X9: =IF($I$1="Hy-Line W-36", Standards!P21, IF($I$1="Hy-Line Brown", Standards!G21, IF($I$1="Hy-Line W-80", Standards!Y21, IF($I$1="Hy-Line Pink", Standards!AH21, IF($I$1="Hy-Line Silver Brown", Standards!AQ21, IF($I$1="Hy-Line Sonia", Standards!AZ21, 0)))))) -> – | Y9: =IF($I$1="Hy-Line W-36", Standards!Q21, IF($I$1="Hy-Line Brown", Standards!H21, IF($I$1="Hy-Line W-80", Standards!Z21, IF($I$1="Hy-Line Pink", Standards!AI21, IF($I$1="Hy-Line Silver Brown", Standards!AR21, IF($I$1="Hy-Line Sonia", Standards!BA21, 0)))))) -> 1.700 | Z9: 0.095 | AI9: 1.590 | AJ9: 0.110 | AK9: 1.700 | AL9: 1.590
A10: 6 | Q10: Week 20 | R10: =J$38 -> 0 | S10: =J$39 -> 0.000 | T10: 0 | U10: =J$40 -> 0.0% | V10: =J$41 -> 0.0% | W10: =IF($I$1="Hy-Line W-36", Standards!O22, IF($I$1="Hy-Line Brown", Standards!F22, IF($I$1="Hy-Line W-80", Standards!X22, IF($I$1="Hy-Line Pink", Standards!AG22, IF($I$1="Hy-Line Silver Brown", Standards!AP22, IF($I$1="Hy-Line Sonia", Standards!AY22, 0)))))) -> 1.650 | X10: =IF($I$1="Hy-Line W-36", Standards!P22, IF($I$1="Hy-Line Brown", Standards!G22, IF($I$1="Hy-Line W-80", Standards!Y22, IF($I$1="Hy-Line Pink", Standards!AH22, IF($I$1="Hy-Line Silver Brown", Standards!AQ22, IF($I$1="Hy-Line Sonia", Standards!AZ22, 0)))))) -> – | Y10: =IF($I$1="Hy-Line W-36", Standards!Q22, IF($I$1="Hy-Line Brown", Standards!H22, IF($I$1="Hy-Line W-80", Standards!Z22, IF($I$1="Hy-Line Pink", Standards!AI22, IF($I$1="Hy-Line Silver Brown", Standards!AR22, IF($I$1="Hy-Line Sonia", Standards!BA22, 0)))))) -> 1.770 | Z10: 0.065 | AI10: 1.650 | AJ10: 0.120 | AK10: 1.770 | AL10: 1.650
A11: 7 | E11: =CONCATENATE("Number of birds outside ",FIXED(J8,3)," and ",FIXED(J9,3)," kg") -> Number of birds outside 0.000 and 0.000 kg | J11: =COUNTIF(C5:C104,"High")+COUNTIF(C5:C104,"Low") -> 0 | Q11: Week 21 | R11: =K$38 -> 0 | S11: =K$39 -> 0.000 | T11: 0 | U11: =K$40 -> 0.0% | V11: =K$41 -> 0.0% | W11: =IF($I$1="Hy-Line W-36", Standards!O23, IF($I$1="Hy-Line Brown", Standards!F23, IF($I$1="Hy-Line W-80", Standards!X23, IF($I$1="Hy-Line Pink", Standards!AG23, IF($I$1="Hy-Line Silver Brown", Standards!AP23, IF($I$1="Hy-Line Sonia", Standards!AY23, 0)))))) -> 1.700 | X11: =IF($I$1="Hy-Line W-36", Standards!P23, IF($I$1="Hy-Line Brown", Standards!G23, IF($I$1="Hy-Line W-80", Standards!Y23, IF($I$1="Hy-Line Pink", Standards!AH23, IF($I$1="Hy-Line Silver Brown", Standards!AQ23, IF($I$1="Hy-Line Sonia", Standards!AZ23, 0)))))) -> – | Y11: =IF($I$1="Hy-Line W-36", Standards!Q23, IF($I$1="Hy-Line Brown", Standards!H23, IF($I$1="Hy-Line W-80", Standards!Z23, IF($I$1="Hy-Line Pink", Standards!AI23, IF($I$1="Hy-Line Silver Brown", Standards!AR23, IF($I$1="Hy-Line Sonia", Standards!BA23, 0)))))) -> 1.810 | Z11: 0.045 | AI11: 1.700 | AJ11: 0.110 | AK11: 1.810 | AL11: 1.700
A12: 8 | E12: =CONCATENATE("Uniformity = ([",J5,"-",J11,"]/",J5,") x 100 = ") -> Uniformity = ([0-0]/0) x 100 = | J12: =IFERROR(ROUND(((J5-J11)/J5)*100,0), 0) -> 0 | K12: % | Q12: Week 22 | R12: =L$38 -> 0 | S12: =L$39 -> 0.000 | T12: 0 | U12: =L$40 -> 0.0% | V12: =L$41 -> 0.0% | W12: =IF($I$1="Hy-Line W-36", Standards!O24, IF($I$1="Hy-Line Brown", Standards!F24, IF($I$1="Hy-Line W-80", Standards!X24, IF($I$1="Hy-Line Pink", Standards!AG24, IF($I$1="Hy-Line Silver Brown", Standards!AP24, IF($I$1="Hy-Line Sonia", Standards!AY24, 0)))))) -> 1.750 | X12: =IF($I$1="Hy-Line W-36", Standards!P24, IF($I$1="Hy-Line Brown", Standards!G24, IF($I$1="Hy-Line W-80", Standards!Y24, IF($I$1="Hy-Line Pink", Standards!AH24, IF($I$1="Hy-Line Silver Brown", Standards!AQ24, IF($I$1="Hy-Line Sonia", Standards!AZ24, 0)))))) -> – | Y12: =IF($I$1="Hy-Line W-36", Standards!Q24, IF($I$1="Hy-Line Brown", Standards!H24, IF($I$1="Hy-Line W-80", Standards!Z24, IF($I$1="Hy-Line Pink", Standards!AI24, IF($I$1="Hy-Line Silver Brown", Standards!AR24, IF($I$1="Hy-Line Sonia", Standards!BA24, 0)))))) -> 1.850 | Z12: 0.045 | AI12: 1.750 | AJ12: 0.100 | AK12: 1.850 | AL12: 1.750
A13: 9 | E13: =IFERROR(CONCATENATE("CV = (",TEXT(G19, "#.##"),"/",TEXT(J7,"#.###"),") x 100 = "), "CV%") -> CV% | J13: =IFERROR((G19/J7)*100, 0) -> 0.0 | K13: % | N13: Body weight Range | O13: Count | Q13: Week 23 | R13: =M$38 -> 0 | S13: =M$39 -> 0.000 | T13: 0 | U13: =M$40 -> 0.0% | V13: =M$41 -> 0.0% | W13: =IF($I$1="Hy-Line W-36", Standards!O25, IF($I$1="Hy-Line Brown", Standards!F25, IF($I$1="Hy-Line W-80", Standards!X25, IF($I$1="Hy-Line Pink", Standards!AG25, IF($I$1="Hy-Line Silver Brown", Standards!AP25, IF($I$1="Hy-Line Sonia", Standards!AY25, 0)))))) -> 1.780 | X13: =IF($I$1="Hy-Line W-36", Standards!P25, IF($I$1="Hy-Line Brown", Standards!G25, IF($I$1="Hy-Line W-80", Standards!Y25, IF($I$1="Hy-Line Pink", Standards!AH25, IF($I$1="Hy-Line Silver Brown", Standards!AQ25, IF($I$1="Hy-Line Sonia", Standards!AZ25, 0)))))) -> – | Y13: =IF($I$1="Hy-Line W-36", Standards!Q25, IF($I$1="Hy-Line Brown", Standards!H25, IF($I$1="Hy-Line W-80", Standards!Z25, IF($I$1="Hy-Line Pink", Standards!AI25, IF($I$1="Hy-Line Silver Brown", Standards!AR25, IF($I$1="Hy-Line Sonia", Standards!BA25, 0)))))) -> 1.880 | Z13: 0.030 | AI13: 1.780 | AJ13: 0.100 | AK13: 1.880 | AL13: 1.780
A14: 10 | Q14: Week 24 | R14: =N$38 -> 0 | S14: =N$39 -> 0.000 | T14: 0 | U14: =N$40 -> 0.0% | V14: =N$41 -> 0.0% | W14: =IF($I$1="Hy-Line W-36", Standards!O26, IF($I$1="Hy-Line Brown", Standards!F26, IF($I$1="Hy-Line W-80", Standards!X26, IF($I$1="Hy-Line Pink", Standards!AG26, IF($I$1="Hy-Line Silver Brown", Standards!AP26, IF($I$1="Hy-Line Sonia", Standards!AY26, 0)))))) -> 1.810 | X14: =IF($I$1="Hy-Line W-36", Standards!P26, IF($I$1="Hy-Line Brown", Standards!G26, IF($I$1="Hy-Line W-80", Standards!Y26, IF($I$1="Hy-Line Pink", Standards!AH26, IF($I$1="Hy-Line Silver Brown", Standards!AQ26, IF($I$1="Hy-Line Sonia", Standards!AZ26, 0)))))) -> – | Y14: =IF($I$1="Hy-Line W-36", Standards!Q26, IF($I$1="Hy-Line Brown", Standards!H26, IF($I$1="Hy-Line W-80", Standards!Z26, IF($I$1="Hy-Line Pink", Standards!AI26, IF($I$1="Hy-Line Silver Brown", Standards!AR26, IF($I$1="Hy-Line Sonia", Standards!BA26, 0)))))) -> 1.910 | Z14: 0.030 | AI14: 1.810 | AJ14: 0.100 | AK14: 1.910 | AL14: 1.810
A15: 11 | F15: Min | G15: =MIN(B5:B104)-0.00000001 -> -0.000 | H15: =ROUNDDOWN(G15,1) -> 0.000 | J15: Normal distr. Curve | N15: =CONCATENATE(FIXED(H15,2),"–",FIXED(J18,2)) -> 0.00–0.01 | O15: =COUNTIF($B$5:$B$105,"<"&J18)-COUNTIF($B$5:$B105,"<"&J17) -> 0 | Q15: Week 25 | R15: =O$38 -> 0 | S15: =O$39 -> 0.000 | T15: 0 | U15: =O$40 -> 0.0% | V15: =O$41 -> 0.0% | W15: =IF($I$1="Hy-Line W-36", Standards!O27, IF($I$1="Hy-Line Brown", Standards!F27, IF($I$1="Hy-Line W-80", Standards!X27, IF($I$1="Hy-Line Pink", Standards!AG27, IF($I$1="Hy-Line Silver Brown", Standards!AP27, IF($I$1="Hy-Line Sonia", Standards!AY27, 0)))))) -> 1.820 | X15: =IF($I$1="Hy-Line W-36", Standards!P27, IF($I$1="Hy-Line Brown", Standards!G27, IF($I$1="Hy-Line W-80", Standards!Y27, IF($I$1="Hy-Line Pink", Standards!AH27, IF($I$1="Hy-Line Silver Brown", Standards!AQ27, IF($I$1="Hy-Line Sonia", Standards!AZ27, 0)))))) -> – | Y15: =IF($I$1="Hy-Line W-36", Standards!Q27, IF($I$1="Hy-Line Brown", Standards!H27, IF($I$1="Hy-Line W-80", Standards!Z27, IF($I$1="Hy-Line Pink", Standards!AI27, IF($I$1="Hy-Line Silver Brown", Standards!AR27, IF($I$1="Hy-Line Sonia", Standards!BA27, 0)))))) -> 1.930 | Z15: 0.015 | AI15: 1.820 | AJ15: 0.110 | AK15: 1.930 | AL15: 1.820
A16: 12 | F16: Max | G16: =MAX(B5:B104)+0.00000001 -> 0.000 | H16: =ROUNDUP(G16,1) -> 0.100 | J16: x | K16: y | N16: =CONCATENATE(FIXED(J18,2),"–",FIXED(J19,2)) -> 0.01–0.02 | O16: =COUNTIF($B$5:$B$105,"<"&J19)-COUNTIF($B$5:$B106,"<"&J18) -> 0 | Q16: Week 26 | R16: =P$38 -> 0 | S16: =P$39 -> 0.000 | T16: 0 | U16: =P$40 -> 0.0% | V16: =P$41 -> 0.0% | W16: =IF($I$1="Hy-Line W-36", Standards!O28, IF($I$1="Hy-Line Brown", Standards!F28, IF($I$1="Hy-Line W-80", Standards!X28, IF($I$1="Hy-Line Pink", Standards!AG28, IF($I$1="Hy-Line Silver Brown", Standards!AP28, IF($I$1="Hy-Line Sonia", Standards!AY28, 0)))))) -> 1.830 | X16: =IF($I$1="Hy-Line W-36", Standards!P28, IF($I$1="Hy-Line Brown", Standards!G28, IF($I$1="Hy-Line W-80", Standards!Y28, IF($I$1="Hy-Line Pink", Standards!AH28, IF($I$1="Hy-Line Silver Brown", Standards!AQ28, IF($I$1="Hy-Line Sonia", Standards!AZ28, 0)))))) -> – | Y16: =IF($I$1="Hy-Line W-36", Standards!Q28, IF($I$1="Hy-Line Brown", Standards!H28, IF($I$1="Hy-Line W-80", Standards!Z28, IF($I$1="Hy-Line Pink", Standards!AI28, IF($I$1="Hy-Line Silver Brown", Standards!AR28, IF($I$1="Hy-Line Sonia", Standards!BA28, 0)))))) -> 1.940 | Z16: 0.010 | AI16: 1.830 | AJ16: 0.110 | AK16: 1.940 | AL16: 1.830
A17: 13 | F17: Intervals | G17: =ROUND((J7-G15)/5,3) -> 0.000 | H17: =ROUND((H16-H15)/10,3) -> 0.010 | J17: =H15 -> 0.000 | K17: =NORMDIST(J17,$J$7,$G$19,FALSE) ->  | N17: =CONCATENATE(FIXED(J19,2),"–",FIXED(J20,2)) -> 0.02–0.03 | O17: =COUNTIF($B$5:$B$105,"<"&J20)-COUNTIF($B$5:$B107,"<"&J19) -> 0 | Q17: Week 27 | R17: =Q$38 -> 0 | S17: =Q$39 -> 0.000 | T17: 0 | U17: =Q$40 -> 0.0% | V17: =Q$41 -> 0.0% | W17: =IF($I$1="Hy-Line W-36", Standards!O29, IF($I$1="Hy-Line Brown", Standards!F29, IF($I$1="Hy-Line W-80", Standards!X29, IF($I$1="Hy-Line Pink", Standards!AG29, IF($I$1="Hy-Line Silver Brown", Standards!AP29, IF($I$1="Hy-Line Sonia", Standards!AY29, 0)))))) -> 1.850 | X17: =IF($I$1="Hy-Line W-36", Standards!P29, IF($I$1="Hy-Line Brown", Standards!G29, IF($I$1="Hy-Line W-80", Standards!Y29, IF($I$1="Hy-Line Pink", Standards!AH29, IF($I$1="Hy-Line Silver Brown", Standards!AQ29, IF($I$1="Hy-Line Sonia", Standards!AZ29, 0)))))) -> – | Y17: =IF($I$1="Hy-Line W-36", Standards!Q29, IF($I$1="Hy-Line Brown", Standards!H29, IF($I$1="Hy-Line W-80", Standards!Z29, IF($I$1="Hy-Line Pink", Standards!AI29, IF($I$1="Hy-Line Silver Brown", Standards!AR29, IF($I$1="Hy-Line Sonia", Standards!BA29, 0)))))) -> 1.950 | Z17: 0.015 | AI17: 1.850 | AJ17: 0.100 | AK17: 1.950 | AL17: 1.850
A18: 14 | J18: =J17+$H$17 -> 0.010 | N18: 0.03–0.04 | O18: =COUNTIF($B$5:$B$105,"<"&J21)-COUNTIF($B$5:$B108,"<"&J20) -> 0 | Q18: Week 28 | R18: =R$38 -> 0 | S18: =R$39 -> 0.000 | T18: 0 | U18: =R$40 -> 0.0% | V18: =R$41 -> 0.0% | W18: =IF($I$1="Hy-Line W-36", Standards!O30, IF($I$1="Hy-Line Brown", Standards!F30, IF($I$1="Hy-Line W-80", Standards!X30, IF($I$1="Hy-Line Pink", Standards!AG30, IF($I$1="Hy-Line Silver Brown", Standards!AP30, IF($I$1="Hy-Line Sonia", Standards!AY30, 0)))))) -> 1.860 | X18: =IF($I$1="Hy-Line W-36", Standards!P30, IF($I$1="Hy-Line Brown", Standards!G30, IF($I$1="Hy-Line W-80", Standards!Y30, IF($I$1="Hy-Line Pink", Standards!AH30, IF($I$1="Hy-Line Silver Brown", Standards!AQ30, IF($I$1="Hy-Line Sonia", Standards!AZ30, 0)))))) -> – | Y18: =IF($I$1="Hy-Line W-36", Standards!Q30, IF($I$1="Hy-Line Brown", Standards!H30, IF($I$1="Hy-Line W-80", Standards!Z30, IF($I$1="Hy-Line Pink", Standards!AI30, IF($I$1="Hy-Line Silver Brown", Standards!AR30, IF($I$1="Hy-Line Sonia", Standards!BA30, 0)))))) -> 1.970 | Z18: 0.015 | AI18: 1.860 | AJ18: 0.110 | AK18: 1.970 | AL18: 1.860
A19: 15 | F19: stdev | G19: =STDEV(B4:B105) ->  | J19: 0.020 | N19: 0.04–0.05 | O19: =COUNTIF($B$5:$B$105,"<"&J22)-COUNTIF($B$5:$B109,"<"&J21) -> 0 | Q19: Week 29 | R19: =S$38 -> 0 | S19: =S$39 -> 0.000 | T19: 0 | U19: =S$40 -> 0.0% | V19: =S$41 -> 0.0% | W19: =IF($I$1="Hy-Line W-36", Standards!O31, IF($I$1="Hy-Line Brown", Standards!F31, IF($I$1="Hy-Line W-80", Standards!X31, IF($I$1="Hy-Line Pink", Standards!AG31, IF($I$1="Hy-Line Silver Brown", Standards!AP31, IF($I$1="Hy-Line Sonia", Standards!AY31, 0)))))) -> 1.870 | X19: =IF($I$1="Hy-Line W-36", Standards!P31, IF($I$1="Hy-Line Brown", Standards!G31, IF($I$1="Hy-Line W-80", Standards!Y31, IF($I$1="Hy-Line Pink", Standards!AH31, IF($I$1="Hy-Line Silver Brown", Standards!AQ31, IF($I$1="Hy-Line Sonia", Standards!AZ31, 0)))))) -> – | Y19: =IF($I$1="Hy-Line W-36", Standards!Q31, IF($I$1="Hy-Line Brown", Standards!H31, IF($I$1="Hy-Line W-80", Standards!Z31, IF($I$1="Hy-Line Pink", Standards!AI31, IF($I$1="Hy-Line Silver Brown", Standards!AR31, IF($I$1="Hy-Line Sonia", Standards!BA31, 0)))))) -> 1.980 | Z19: 0.010 | AI19: 1.870 | AJ19: 0.110 | AK19: 1.980 | AL19: 1.870
A20: 16 | J20: 0.030 | N20: 0.05–0.06 | O20: =COUNTIF($B$5:$B$105,"<"&J23)-COUNTIF($B$5:$B110,"<"&J22) -> 0 | Q20: Week 30 | R20: =T$38 -> 0 | S20: =T$39 -> 0.000 | T20: 0 | U20: =T$40 -> 0.0% | V20: =T$41 -> 0.0% | W20: =IF($I$1="Hy-Line W-36", Standards!O32, IF($I$1="Hy-Line Brown", Standards!F32, IF($I$1="Hy-Line W-80", Standards!X32, IF($I$1="Hy-Line Pink", Standards!AG32, IF($I$1="Hy-Line Silver Brown", Standards!AP32, IF($I$1="Hy-Line Sonia", Standards!AY32, 0)))))) -> 1.870 | X20: =IF($I$1="Hy-Line W-36", Standards!P32, IF($I$1="Hy-Line Brown", Standards!G32, IF($I$1="Hy-Line W-80", Standards!Y32, IF($I$1="Hy-Line Pink", Standards!AH32, IF($I$1="Hy-Line Silver Brown", Standards!AQ32, IF($I$1="Hy-Line Sonia", Standards!AZ32, 0)))))) -> – | Y20: =IF($I$1="Hy-Line W-36", Standards!Q32, IF($I$1="Hy-Line Brown", Standards!H32, IF($I$1="Hy-Line W-80", Standards!Z32, IF($I$1="Hy-Line Pink", Standards!AI32, IF($I$1="Hy-Line Silver Brown", Standards!AR32, IF($I$1="Hy-Line Sonia", Standards!BA32, 0)))))) -> 1.980 | Z20: 0.000 | AI20: 1.870 | AJ20: 0.110 | AK20: 1.980 | AL20: 1.870
A21: 17 | J21: 0.040 | N21: 0.06–0.07 | O21: =COUNTIF($B$5:$B$105,"<"&J24)-COUNTIF($B$5:$B111,"<"&J23) -> 0 | Q21: Week 31 | R21: =U$38 -> 0 | S21: =U$39 -> 0.000 | T21: 0 | U21: =U$40 -> 0.0% | V21: =U$41 -> 0.0% | W21: =IF($I$1="Hy-Line W-36", Standards!O33, IF($I$1="Hy-Line Brown", Standards!F33, IF($I$1="Hy-Line W-80", Standards!X33, IF($I$1="Hy-Line Pink", Standards!AG33, IF($I$1="Hy-Line Silver Brown", Standards!AP33, IF($I$1="Hy-Line Sonia", Standards!AY33, 0)))))) -> 1.870 | X21: =IF($I$1="Hy-Line W-36", Standards!P33, IF($I$1="Hy-Line Brown", Standards!G33, IF($I$1="Hy-Line W-80", Standards!Y33, IF($I$1="Hy-Line Pink", Standards!AH33, IF($I$1="Hy-Line Silver Brown", Standards!AQ33, IF($I$1="Hy-Line Sonia", Standards!AZ33, 0)))))) -> – | Y21: =IF($I$1="Hy-Line W-36", Standards!Q33, IF($I$1="Hy-Line Brown", Standards!H33, IF($I$1="Hy-Line W-80", Standards!Z33, IF($I$1="Hy-Line Pink", Standards!AI33, IF($I$1="Hy-Line Silver Brown", Standards!AR33, IF($I$1="Hy-Line Sonia", Standards!BA33, 0)))))) -> 1.980 | Z21: 0.000 | AI21: 1.870 | AJ21: 0.110 | AK21: 1.980 | AL21: 1.870
A22: 18 | J22: 0.050 | N22: 0.07–0.08 | O22: =COUNTIF($B$5:$B$105,"<"&J25)-COUNTIF($B$5:$B112,"<"&J24) -> 0 | Q22: Week 32 | R22: =V$38 -> 0 | S22: =V$39 -> 0.000 | T22: 0 | U22: =V$40 -> 0.0% | V22: =V$41 -> 0.0% | W22: =IF($I$1="Hy-Line W-36", Standards!O34, IF($I$1="Hy-Line Brown", Standards!F34, IF($I$1="Hy-Line W-80", Standards!X34, IF($I$1="Hy-Line Pink", Standards!AG34, IF($I$1="Hy-Line Silver Brown", Standards!AP34, IF($I$1="Hy-Line Sonia", Standards!AY34, 0)))))) -> 1.880 | X22: =IF($I$1="Hy-Line W-36", Standards!P34, IF($I$1="Hy-Line Brown", Standards!G34, IF($I$1="Hy-Line W-80", Standards!Y34, IF($I$1="Hy-Line Pink", Standards!AH34, IF($I$1="Hy-Line Silver Brown", Standards!AQ34, IF($I$1="Hy-Line Sonia", Standards!AZ34, 0)))))) -> – | Y22: =IF($I$1="Hy-Line W-36", Standards!Q34, IF($I$1="Hy-Line Brown", Standards!H34, IF($I$1="Hy-Line W-80", Standards!Z34, IF($I$1="Hy-Line Pink", Standards!AI34, IF($I$1="Hy-Line Silver Brown", Standards!AR34, IF($I$1="Hy-Line Sonia", Standards!BA34, 0)))))) -> 1.990 | Z22: 0.010 | AI22: 1.880 | AJ22: 0.110 | AK22: 1.990 | AL22: 1.880
A23: 19 | J23: 0.060 | N23: 0.08–0.09 | O23: =COUNTIF($B$5:$B$105,"<"&J26)-COUNTIF($B$5:$B113,"<"&J25) -> 0 | Q23: Week 33 | R23: =W$38 -> 0 | S23: =W$39 -> 0.000 | T23: 0 | U23: =W$40 -> 0.0% | V23: =W$41 -> 0.0% | W23: =IF($I$1="Hy-Line W-36", Standards!O35, IF($I$1="Hy-Line Brown", Standards!F35, IF($I$1="Hy-Line W-80", Standards!X35, IF($I$1="Hy-Line Pink", Standards!AG35, IF($I$1="Hy-Line Silver Brown", Standards!AP35, IF($I$1="Hy-Line Sonia", Standards!AY35, 0)))))) -> 1.880 | X23: =IF($I$1="Hy-Line W-36", Standards!P35, IF($I$1="Hy-Line Brown", Standards!G35, IF($I$1="Hy-Line W-80", Standards!Y35, IF($I$1="Hy-Line Pink", Standards!AH35, IF($I$1="Hy-Line Silver Brown", Standards!AQ35, IF($I$1="Hy-Line Sonia", Standards!AZ35, 0)))))) -> – | Y23: =IF($I$1="Hy-Line W-36", Standards!Q35, IF($I$1="Hy-Line Brown", Standards!H35, IF($I$1="Hy-Line W-80", Standards!Z35, IF($I$1="Hy-Line Pink", Standards!AI35, IF($I$1="Hy-Line Silver Brown", Standards!AR35, IF($I$1="Hy-Line Sonia", Standards!BA35, 0)))))) -> 1.990 | Z23: 0.000 | AI23: 1.880 | AJ23: 0.110 | AK23: 1.990 | AL23: 1.880
A24: 20 | J24: 0.070 | N24: 0.09–0.10 | O24: =COUNTIF($B$5:$B$105,"<"&J27)-COUNTIF($B$5:$B114,"<"&J26) -> 0 | Q24: Week 34 | R24: =Y$38 -> 0 | S24: =Y$39 -> 0.000 | T24: 0 | U24: =Y$40 -> 0.0% | V24: =Y$41 -> 0.0% | W24: =IF($I$1="Hy-Line W-36", Standards!O36, IF($I$1="Hy-Line Brown", Standards!F36, IF($I$1="Hy-Line W-80", Standards!X36, IF($I$1="Hy-Line Pink", Standards!AG36, IF($I$1="Hy-Line Silver Brown", Standards!AP36, IF($I$1="Hy-Line Sonia", Standards!AY36, 0)))))) -> 1.890 | X24: =IF($I$1="Hy-Line W-36", Standards!P36, IF($I$1="Hy-Line Brown", Standards!G36, IF($I$1="Hy-Line W-80", Standards!Y36, IF($I$1="Hy-Line Pink", Standards!AH36, IF($I$1="Hy-Line Silver Brown", Standards!AQ36, IF($I$1="Hy-Line Sonia", Standards!AZ36, 0)))))) -> – | Y24: =IF($I$1="Hy-Line W-36", Standards!Q36, IF($I$1="Hy-Line Brown", Standards!H36, IF($I$1="Hy-Line W-80", Standards!Z36, IF($I$1="Hy-Line Pink", Standards!AI36, IF($I$1="Hy-Line Silver Brown", Standards!AR36, IF($I$1="Hy-Line Sonia", Standards!BA36, 0)))))) -> 2.000 | Z24: 0.010 | AI24: 1.890 | AJ24: 0.110 | AK24: 2.000 | AL24: 1.890
A25: 21 | J25: 0.080 | Q25: Week 35 | R25: =Z$38 -> 0 | S25: =Z$39 -> 0.000 | T25: 0 | U25: =Z$40 -> 0.0% | V25: =Z$41 -> 0.0% | W25: =IF($I$1="Hy-Line W-36", Standards!O37, IF($I$1="Hy-Line Brown", Standards!F37, IF($I$1="Hy-Line W-80", Standards!X37, IF($I$1="Hy-Line Pink", Standards!AG37, IF($I$1="Hy-Line Silver Brown", Standards!AP37, IF($I$1="Hy-Line Sonia", Standards!AY37, 0)))))) -> 1.890 | X25: =IF($I$1="Hy-Line W-36", Standards!P37, IF($I$1="Hy-Line Brown", Standards!G37, IF($I$1="Hy-Line W-80", Standards!Y37, IF($I$1="Hy-Line Pink", Standards!AH37, IF($I$1="Hy-Line Silver Brown", Standards!AQ37, IF($I$1="Hy-Line Sonia", Standards!AZ37, 0)))))) -> – | Y25: =IF($I$1="Hy-Line W-36", Standards!Q37, IF($I$1="Hy-Line Brown", Standards!H37, IF($I$1="Hy-Line W-80", Standards!Z37, IF($I$1="Hy-Line Pink", Standards!AI37, IF($I$1="Hy-Line Silver Brown", Standards!AR37, IF($I$1="Hy-Line Sonia", Standards!BA37, 0)))))) -> 2.000 | Z25: 0.000 | AI25: 1.890 | AJ25: 0.110 | AK25: 2.000 | AL25: 1.890
A26: 22 | J26: 0.090 | N26: Total birds | O26: =SUM(O14:O25) -> 0 | P26: =IF(O26<>J5,"Something is wrong","") ->  | Q26: Week 36 | R26: =AA$38 -> 0 | S26: =AA$39 -> 0.000 | T26: 0 | U26: =AA$40 -> 0.0% | V26: =AA$41 -> 0.0% | W26: =IF($I$1="Hy-Line W-36", Standards!O38, IF($I$1="Hy-Line Brown", Standards!F38, IF($I$1="Hy-Line W-80", Standards!X38, IF($I$1="Hy-Line Pink", Standards!AG38, IF($I$1="Hy-Line Silver Brown", Standards!AP38, IF($I$1="Hy-Line Sonia", Standards!AY38, 0)))))) -> 1.890 | X26: =IF($I$1="Hy-Line W-36", Standards!P38, IF($I$1="Hy-Line Brown", Standards!G38, IF($I$1="Hy-Line W-80", Standards!Y38, IF($I$1="Hy-Line Pink", Standards!AH38, IF($I$1="Hy-Line Silver Brown", Standards!AQ38, IF($I$1="Hy-Line Sonia", Standards!AZ38, 0)))))) -> – | Y26: =IF($I$1="Hy-Line W-36", Standards!Q38, IF($I$1="Hy-Line Brown", Standards!H38, IF($I$1="Hy-Line W-80", Standards!Z38, IF($I$1="Hy-Line Pink", Standards!AI38, IF($I$1="Hy-Line Silver Brown", Standards!AR38, IF($I$1="Hy-Line Sonia", Standards!BA38, 0)))))) -> 2.000 | Z26: 0.000 | AI26: 1.890 | AJ26: 0.110 | AK26: 2.000 | AL26: 1.890
A27: 23 | J27: 0.100 | Q27: Week 37 | R27: =AB$38 -> 0 | S27: =AB$39 -> 0.000 | T27: 0 | U27: =AB$40 -> 0.0% | V27: =AB$41 -> 0.0% | W27: =IF($I$1="Hy-Line W-36", Standards!O39, IF($I$1="Hy-Line Brown", Standards!F39, IF($I$1="Hy-Line W-80", Standards!X39, IF($I$1="Hy-Line Pink", Standards!AG39, IF($I$1="Hy-Line Silver Brown", Standards!AP39, IF($I$1="Hy-Line Sonia", Standards!AY39, 0)))))) -> 1.890 | X27: =IF($I$1="Hy-Line W-36", Standards!P39, IF($I$1="Hy-Line Brown", Standards!G39, IF($I$1="Hy-Line W-80", Standards!Y39, IF($I$1="Hy-Line Pink", Standards!AH39, IF($I$1="Hy-Line Silver Brown", Standards!AQ39, IF($I$1="Hy-Line Sonia", Standards!AZ39, 0)))))) -> – | Y27: =IF($I$1="Hy-Line W-36", Standards!Q39, IF($I$1="Hy-Line Brown", Standards!H39, IF($I$1="Hy-Line W-80", Standards!Z39, IF($I$1="Hy-Line Pink", Standards!AI39, IF($I$1="Hy-Line Silver Brown", Standards!AR39, IF($I$1="Hy-Line Sonia", Standards!BA39, 0)))))) -> 2.000 | Z27: 0.000 | AI27: 1.890 | AJ27: 0.110 | AK27: 2.000 | AL27: 1.890
A28: 24 | Q28: Week 38 | R28: =AC$38 -> 0 | S28: =AC$39 -> 0.000 | T28: 0 | U28: =AC$40 -> 0.0% | V28: =AC$41 -> 0.0% | W28: =IF($I$1="Hy-Line W-36", Standards!O40, IF($I$1="Hy-Line Brown", Standards!F40, IF($I$1="Hy-Line W-80", Standards!X40, IF($I$1="Hy-Line Pink", Standards!AG40, IF($I$1="Hy-Line Silver Brown", Standards!AP40, IF($I$1="Hy-Line Sonia", Standards!AY40, 0)))))) -> 1.890 | X28: =IF($I$1="Hy-Line W-36", Standards!P40, IF($I$1="Hy-Line Brown", Standards!G40, IF($I$1="Hy-Line W-80", Standards!Y40, IF($I$1="Hy-Line Pink", Standards!AH40, IF($I$1="Hy-Line Silver Brown", Standards!AQ40, IF($I$1="Hy-Line Sonia", Standards!AZ40, 0)))))) -> – | Y28: =IF($I$1="Hy-Line W-36", Standards!Q40, IF($I$1="Hy-Line Brown", Standards!H40, IF($I$1="Hy-Line W-80", Standards!Z40, IF($I$1="Hy-Line Pink", Standards!AI40, IF($I$1="Hy-Line Silver Brown", Standards!AR40, IF($I$1="Hy-Line Sonia", Standards!BA40, 0)))))) -> 2.010 | Z28: 0.005 | AI28: 1.890 | AJ28: 0.120 | AK28: 2.010 | AL28: 1.890
A29: 25 | Q29: Week 39 | R29: =AD$38 -> 0 | S29: =AD$39 -> 0.000 | T29: 0 | U29: =AD$40 -> 0.0% | V29: =AD$41 -> 0.0% | W29: =IF($I$1="Hy-Line W-36", Standards!O41, IF($I$1="Hy-Line Brown", Standards!F41, IF($I$1="Hy-Line W-80", Standards!X41, IF($I$1="Hy-Line Pink", Standards!AG41, IF($I$1="Hy-Line Silver Brown", Standards!AP41, IF($I$1="Hy-Line Sonia", Standards!AY41, 0)))))) -> 1.900 | X29: =IF($I$1="Hy-Line W-36", Standards!P41, IF($I$1="Hy-Line Brown", Standards!G41, IF($I$1="Hy-Line W-80", Standards!Y41, IF($I$1="Hy-Line Pink", Standards!AH41, IF($I$1="Hy-Line Silver Brown", Standards!AQ41, IF($I$1="Hy-Line Sonia", Standards!AZ41, 0)))))) -> – | Y29: =IF($I$1="Hy-Line W-36", Standards!Q41, IF($I$1="Hy-Line Brown", Standards!H41, IF($I$1="Hy-Line W-80", Standards!Z41, IF($I$1="Hy-Line Pink", Standards!AI41, IF($I$1="Hy-Line Silver Brown", Standards!AR41, IF($I$1="Hy-Line Sonia", Standards!BA41, 0)))))) -> 2.010 | Z29: 0.005 | AI29: 1.900 | AJ29: 0.110 | AK29: 2.010 | AL29: 1.900
A30: 26 | Q30: Week 40 | R30: =AE$38 -> 0 | S30: =AE$39 -> 0.000 | T30: 0 | U30: =AE$40 -> 0.0% | V30: =AE$41 -> 0.0% | W30: =IF($I$1="Hy-Line W-36", Standards!O42, IF($I$1="Hy-Line Brown", Standards!F42, IF($I$1="Hy-Line W-80", Standards!X42, IF($I$1="Hy-Line Pink", Standards!AG42, IF($I$1="Hy-Line Silver Brown", Standards!AP42, IF($I$1="Hy-Line Sonia", Standards!AY42, 0)))))) -> 1.900 | X30: =IF($I$1="Hy-Line W-36", Standards!P42, IF($I$1="Hy-Line Brown", Standards!G42, IF($I$1="Hy-Line W-80", Standards!Y42, IF($I$1="Hy-Line Pink", Standards!AH42, IF($I$1="Hy-Line Silver Brown", Standards!AQ42, IF($I$1="Hy-Line Sonia", Standards!AZ42, 0)))))) -> – | Y30: =IF($I$1="Hy-Line W-36", Standards!Q42, IF($I$1="Hy-Line Brown", Standards!H42, IF($I$1="Hy-Line W-80", Standards!Z42, IF($I$1="Hy-Line Pink", Standards!AI42, IF($I$1="Hy-Line Silver Brown", Standards!AR42, IF($I$1="Hy-Line Sonia", Standards!BA42, 0)))))) -> 2.010 | Z30: 0.000 | AI30: 1.900 | AJ30: 0.110 | AK30: 2.010 | AL30: 1.900
A31: 27 | H31: NORMINV(rand(),mean,standard_dev) | Q31: Week 41 | R31: =AF$38 -> 0 | S31: =AF$39 -> 0.000 | T31: 0 | U31: =AF$40 -> 0.0% | V31: =AF$41 -> 0.0% | W31: =IF($I$1="Hy-Line W-36", Standards!O43, IF($I$1="Hy-Line Brown", Standards!F43, IF($I$1="Hy-Line W-80", Standards!X43, IF($I$1="Hy-Line Pink", Standards!AG43, IF($I$1="Hy-Line Silver Brown", Standards!AP43, IF($I$1="Hy-Line Sonia", Standards!AY43, 0)))))) -> 1.900 | X31: =IF($I$1="Hy-Line W-36", Standards!P43, IF($I$1="Hy-Line Brown", Standards!G43, IF($I$1="Hy-Line W-80", Standards!Y43, IF($I$1="Hy-Line Pink", Standards!AH43, IF($I$1="Hy-Line Silver Brown", Standards!AQ43, IF($I$1="Hy-Line Sonia", Standards!AZ43, 0)))))) -> – | Y31: =IF($I$1="Hy-Line W-36", Standards!Q43, IF($I$1="Hy-Line Brown", Standards!H43, IF($I$1="Hy-Line W-80", Standards!Z43, IF($I$1="Hy-Line Pink", Standards!AI43, IF($I$1="Hy-Line Silver Brown", Standards!AR43, IF($I$1="Hy-Line Sonia", Standards!BA43, 0)))))) -> 2.020 | Z31: 0.005 | AI31: 1.900 | AJ31: 0.120 | AK31: 2.020 | AL31: 1.900
A32: 28 | Q32: Week 42 | R32: =AG$38 -> 0 | S32: =AG$39 -> 0.000 | T32: 0 | U32: =AG$40 -> 0.0% | V32: =AG$41 -> 0.0% | W32: =IF($I$1="Hy-Line W-36", Standards!O44, IF($I$1="Hy-Line Brown", Standards!F44, IF($I$1="Hy-Line W-80", Standards!X44, IF($I$1="Hy-Line Pink", Standards!AG44, IF($I$1="Hy-Line Silver Brown", Standards!AP44, IF($I$1="Hy-Line Sonia", Standards!AY44, 0)))))) -> 1.910 | X32: =IF($I$1="Hy-Line W-36", Standards!P44, IF($I$1="Hy-Line Brown", Standards!G44, IF($I$1="Hy-Line W-80", Standards!Y44, IF($I$1="Hy-Line Pink", Standards!AH44, IF($I$1="Hy-Line Silver Brown", Standards!AQ44, IF($I$1="Hy-Line Sonia", Standards!AZ44, 0)))))) -> – | Y32: =IF($I$1="Hy-Line W-36", Standards!Q44, IF($I$1="Hy-Line Brown", Standards!H44, IF($I$1="Hy-Line W-80", Standards!Z44, IF($I$1="Hy-Line Pink", Standards!AI44, IF($I$1="Hy-Line Silver Brown", Standards!AR44, IF($I$1="Hy-Line Sonia", Standards!BA44, 0)))))) -> 2.020 | Z32: 0.005 | AI32: 1.910 | AJ32: 0.110 | AK32: 2.020 | AL32: 1.910
A33: 29
A34: 30
A35: 31
A36: 32 | D36: Body Weights - copy and "paste special" data values into column B for each week to obtain graphs
A37: 33 | D37: Bird # | E37: Week 15 | F37: Week 16 | G37: Week 17 | H37: Week 18 | I37: Week 19 | J37: Week 20 | K37: Week 21 | L37: Week 22 | M37: Week 23 | N37: Week 24 | O37: Week 25 | P37: Week 26 | Q37: Week 27 | R37: Week 28 | S37: Week 29 | T37: Week 30 | U37: Week 31 | V37: Week 32 | W37: Week 33 | Y37: Week 34 | Z37: Week 35 | AA37: Week 36 | AB37: Week 37 | AC37: Week 38 | AD37: Week 39 | AE37: Week 40 | AF37: Week 41 | AG37: Week 42
A38: 34 | D38: Count | E38: =COUNTIF(E42:E141, ">0") -> 0 | F38: =COUNTIF(F42:F141, ">0") -> 0 | G38: 0 | H38: 0 | I38: 0 | J38: 0 | K38: 0 | L38: 0 | M38: 0 | N38: 0 | O38: 0 | P38: 0 | Q38: 0 | R38: 0 | S38: 0 | T38: 0 | U38: 0 | V38: 0 | W38: 0 | Y38: 0 | Z38: 0 | AA38: 0 | AB38: 0 | AC38: 0 | AD38: 0 | AE38: 0 | AF38: 0 | AG38: 0
A39: 35 | D39: Average | E39: =IFERROR(AVERAGE(E42:E141), 0) -> 0.000 | F39: =IFERROR(AVERAGE(F42:F141), 0) -> 0.000 | G39: 0.000 | H39: 0.000 | I39: 0.000 | J39: 0.000 | K39: 0.000 | L39: 0.000 | M39: 0.000 | N39: 0.000 | O39: 0.000 | P39: 0.000 | Q39: 0.000 | R39: 0.000 | S39: 0.000 | T39: 0.000 | U39: 0.000 | V39: 0.000 | W39: 0.000 | Y39: 0.000 | Z39: 0.000 | AA39: 0.000 | AB39: 0.000 | AC39: 0.000 | AD39: 0.000 | AE39: 0.000 | AF39: 0.000 | AG39: 0.000
A40: 36 | D40: Uniformity | E40: =IFERROR((E38-E144)/E38, 0) -> 0.0% | F40: =IFERROR((F38-F144)/F38, 0) -> 0.0% | G40: 0.0% | H40: 0.0% | I40: 0.0% | J40: 0.0% | K40: 0.0% | L40: 0.0% | M40: 0.0% | N40: 0.0% | O40: 0.0% | P40: 0.0% | Q40: 0.0% | R40: 0.0% | S40: 0.0% | T40: 0.0% | U40: 0.0% | V40: 0.0% | W40: 0.0% | Y40: 0.0% | Z40: 0.0% | AA40: 0.0% | AB40: 0.0% | AC40: 0.0% | AD40: 0.0% | AE40: 0.0% | AF40: 0.0% | AG40: 0.0%
A41: 37 | D41: CV% | E41: =IFERROR(STDEV(E42:E141)/E39, 0) -> 0.0% | F41: =IFERROR(STDEV(F42:F141)/F39, 0) -> 0.0% | G41: 0.0% | H41: 0.0% | I41: 0.0% | J41: 0.0% | K41: 0.0% | L41: 0.0% | M41: 0.0% | N41: 0.0% | O41: 0.0% | P41: 0.0% | Q41: 0.0% | R41: 0.0% | S41: 0.0% | T41: 0.0% | U41: 0.0% | V41: 0.0% | W41: 0.0% | Y41: 0.0% | Z41: 0.0% | AA41: 0.0% | AB41: 0.0% | AC41: 0.0% | AD41: 0.0% | AE41: 0.0% | AF41: 0.0% | AG41: 0.0%
A42: 38 | D42: 1
A43: 39 | D43: 2
A44: 40 | D44: 3
A45: 41 | D45: 4
A46: 42 | D46: 5
A47: 43 | D47: 6
A48: 44 | D48: 7
A49: 45 | D49: 8
A50: 46 | D50: 9
A51: 47 | D51: 10
A52: 48 | D52: 11
A53: 49 | D53: 12
A54: 50 | D54: 13
A55: 51 | D55: 14
A56: 52 | D56: 15
A57: 53 | D57: 16
A58: 54 | D58: 17
A59: 55 | D59: 18
A60: 56 | D60: 19
A61: 57 | D61: 20
A62: 58 | D62: 21
A63: 59 | D63: 22
A64: 60 | D64: 23
A65: 61 | D65: 24
A66: 62 | D66: 25
A67: 63 | D67: 26
A68: 64 | D68: 27
A69: 65 | C69: =IF(B69=0,"",IF(B69="","",IF(B69>$J$8,"High",IF(B69<$J$9,"Low","")))) ->  | D69: 28
A70: 66 | D70: 29
A71: =1+A70 -> 67 | D71: 30
A72: 68 | D72: 31
A73: 69 | D73: 32
A74: 70 | D74: 33
A75: 71 | D75: 34
A76: 72 | D76: 35
A77: 73 | D77: 36
A78: 74 | D78: 37
A79: 75 | D79: 38
A80: 76 | D80: 39
A81: 77 | D81: 40
A82: 78 | D82: 41
A83: 79 | D83: 42
A84: 80 | D84: 43
A85: 81 | D85: 44
A86: 82 | D86: 45
A87: 83 | D87: 46
A88: 84 | D88: 47
A89: 85 | D89: 48
A90: 86 | D90: 49
A91: 87 | D91: 50
A92: 88 | D92: 51
A93: 89 | D93: 52
A94: 90 | D94: 53
A95: 91 | D95: 54
A96: 92 | D96: 55
A97: 93 | D97: 56
A98: 94 | D98: 57
A99: 95 | D99: 58
A100: 96 | D100: 59
A101: 97 | D101: 60
A102: 98 | D102: 61
A103: 99 | D103: 62
A104: 100 | D104: 63
D105: 64
D106: 65
D107: 66
D108: 67
D109: 68
D110: 69
D111: 70
D112: 71
D113: 72
D114: 73
D115: 74
D116: 75
D117: 76
D118: 77
D119: 78
D120: 79
D121: 80
D122: 81
D123: 82
D124: 83
D125: 84
D126: 85
D127: 86
D128: 87
D129: 88
D130: 89
D131: 90
D132: 91
D133: 92
D134: 93
D135: 94
D136: 95
D137: 96
D138: 97
D139: 98
D140: 99
D141: 100
E142: =ROUND(E39*1.1, 3) -> 0 | F142: =ROUND(F39*1.1, 3) -> 0 | G142: 0 | H142: 0 | I142: 0 | J142: 0 | K142: 0 | L142: 0 | M142: 0 | N142: 0 | O142: 0 | P142: 0 | Q142: 0 | R142: 0 | S142: 0 | T142: 0 | V142: 0 | W142: 0 | Y142: 0 | Z142: 0 | AA142: 0 | AB142: 0 | AC142: 0 | AD142: 0 | AE142: 0 | AF142: 0 | AG142: 0
E143: =ROUND(E39*0.9, 3) -> 0 | F143: =ROUND(F39*0.9, 3) -> 0 | G143: 0 | H143: 0 | I143: 0 | J143: 0 | K143: 0 | L143: 0 | M143: 0 | N143: 0 | O143: 0 | P143: 0 | Q143: 0 | R143: 0 | S143: 0 | T143: 0 | V143: 0 | W143: 0 | Y143: 0 | Z143: 0 | AA143: 0 | AB143: 0 | AC143: 0 | AD143: 0 | AE143: 0 | AF143: 0 | AG143: 0
E144: =COUNTIF(E42:E141, ">"&E142)+COUNTIF(E42:E141, "<"&E143) -> 0 | F144: =COUNTIF(F42:F141, ">"&F142)+COUNTIF(F42:F141, "<"&F143) -> 0 | G144: 0 | H144: 0 | I144: 0 | J144: 0 | K144: 0 | L144: 0 | M144: 0 | N144: 0 | O144: 0 | P144: 0 | Q144: 0 | R144: 0 | S144: 0 | T144: 0 | V144: 0 | W144: 0 | Y144: 0 | Z144: 0 | AA144: 0 | AB144: 0 | AC144: 0 | AD144: 0 | AE144: 0 | AF144: 0 | AG144: 0

Sheet Standards
A1: Age | B1: Hy-Line Brown Commercial | J1: Age | K1: Hy-Line W-36 Commercial | S1: Age | T1: Hy-Line W-80 Commercial | AB1: Age | AC1: Hy-Line Pink | AK1: Age | AL1: Hy-Line Silver Brown | AT1: Age | AU1: Hy-Line Sonia | BC1: Click to use dropdown menu
A2: weeks | B2: g | C2: – | D2: g | F2: kg | G2: – | H2: kg | J2: weeks | K2: g | L2: – | M2: g | O2: kg | P2: – | Q2: kg | S2: weeks | T2: g | U2: – | V2: g | X2: kg | Y2: – | Z2: kg | AB2: weeks | AC2: g | AD2: – | AE2: g | AG2: kg | AH2: – | AI2: kg | AK2: weeks | AL2: g | AM2: – | AN2: g | AP2: kg | AQ2: – | AR2: kg | AT2: weeks | AU2: g | AV2: – | AW2: g | AY2: kg | AZ2: – | BA2: kg | BC2: Hy-Line Brown
A3: 1 | B3: =SUM(F3*1000) -> 60 | C3: – | D3: =SUM(H3*1000) -> 70 | F3: 0.060 | G3: – | H3: 0.070 | J3: 1 | K3: 60 | L3: – | M3: 73 | O3: =K3/1000 -> 0.060 | P3: – | Q3: =M3/1000 -> 0.073 | S3: 1 | T3: =SUM(X3*1000) -> 70 | U3: – | V3: =SUM(Z3*1000) -> 80 | X3: 0.070 | Y3: – | Z3: 0.080 | AB3: 1 | AC3: =SUM(AG3*1000) -> 70 | AD3: – | AE3: =SUM(AI3*1000) -> 80 | AG3: 0.070 | AH3: – | AI3: 0.080 | AK3: 1 | AL3: =SUM(AP3*1000) -> 70 | AM3: – | AN3: =SUM(AR3*1000) -> 80 | AP3: 0.070 | AQ3: – | AR3: 0.080 | AT3: 1 | AU3: =SUM(AY3*1000) -> 70 | AV3: – | AW3: =SUM(BA3*1000) -> 80 | AY3: 0.070 | AZ3: – | BA3: 0.080 | BC3: Hy-Line W-36
A4: 2 | B4: =SUM(F4*1000) -> 120 | C4: – | D4: =SUM(H4*1000) -> 130 | F4: 0.120 | G4: – | H4: 0.130 | J4: 2 | K4: 100 | L4: – | M4: 118 | O4: =K4/1000 -> 0.100 | P4: – | Q4: =M4/1000 -> 0.118 | S4: 2 | T4: =SUM(X4*1000) -> 120 | U4: – | V4: =SUM(Z4*1000) -> 130 | X4: 0.120 | Y4: – | Z4: 0.130 | AB4: 2 | AC4: =SUM(AG4*1000) -> 110 | AD4: – | AE4: =SUM(AI4*1000) -> 120 | AG4: 0.110 | AH4: – | AI4: 0.120 | AK4: 2 | AL4: =SUM(AP4*1000) -> 120 | AM4: – | AN4: =SUM(AR4*1000) -> 130 | AP4: 0.120 | AQ4: – | AR4: 0.130 | AT4: 2 | AU4: =SUM(AY4*1000) -> 110 | AV4: – | AW4: =SUM(BA4*1000) -> 120 | AY4: 0.110 | AZ4: – | BA4: 0.120 | BC4: Hy-Line W-80
A5: 3 | B5: 180 | C5: – | D5: 200 | F5: 0.180 | G5: – | H5: 0.200 | J5: 3 | K5: 150 | L5: – | M5: 181 | O5: 0.150 | P5: – | Q5: 0.181 | S5: 3 | T5: 180 | U5: – | V5: 190 | X5: 0.180 | Y5: – | Z5: 0.190 | AB5: 3 | AC5: 190 | AD5: – | AE5: 200 | AG5: 0.190 | AH5: – | AI5: 0.200 | AK5: 3 | AL5: 180 | AM5: – | AN5: 200 | AP5: 0.180 | AQ5: – | AR5: 0.200 | AT5: 3 | AU5: 190 | AV5: – | AW5: 200 | AY5: 0.190 | AZ5: – | BA5: 0.200 | BC5: Hy-Line Silver Brown
A6: 4 | B6: 260 | C6: – | D6: 290 | F6: 0.260 | G6: – | H6: 0.290 | J6: 4 | K6: 200 | L6: – | M6: 259 | O6: 0.200 | P6: – | Q6: 0.259 | S6: 4 | T6: 250 | U6: – | V6: 260 | X6: 0.250 | Y6: – | Z6: 0.260 | AB6: 4 | AC6: 280 | AD6: – | AE6: 290 | AG6: 0.280 | AH6: – | AI6: 0.290 | AK6: 4 | AL6: 280 | AM6: – | AN6: 290 | AP6: 0.280 | AQ6: – | AR6: 0.290 | AT6: 4 | AU6: 280 | AV6: – | AW6: 290 | AY6: 0.280 | AZ6: – | BA6: 0.290 | BC6: Hy-Line Sonia
A7: 5 | B7: 350 | C7: – | D7: 380 | F7: 0.350 | G7: – | H7: 0.380 | J7: 5 | K7: 290 | L7: – | M7: 349 | O7: 0.290 | P7: – | Q7: 0.349 | S7: 5 | T7: 320 | U7: – | V7: 350 | X7: 0.320 | Y7: – | Z7: 0.350 | AB7: 5 | AC7: 370 | AD7: – | AE7: 390 | AG7: 0.370 | AH7: – | AI7: 0.390 | AK7: 5 | AL7: 370 | AM7: – | AN7: 390 | AP7: 0.370 | AQ7: – | AR7: 0.390 | AT7: 5 | AU7: 380 | AV7: – | AW7: 390 | AY7: 0.380 | AZ7: – | BA7: 0.390 | BC7: Hy-Line Pink
A8: 6 | B8: 460 | C8: – | D8: 480 | F8: 0.460 | G8: – | H8: 0.480 | J8: 6 | K8: 372 | L8: – | M8: 440 | O8: 0.372 | P8: – | Q8: 0.440 | S8: 6 | T8: 410 | U8: – | V8: 440 | X8: 0.410 | Y8: – | Z8: 0.440 | AB8: 6 | AC8: 480 | AD8: – | AE8: 500 | AG8: 0.480 | AH8: – | AI8: 0.500 | AK8: 6 | AL8: 470 | AM8: – | AN8: 490 | AP8: 0.470 | AQ8: – | AR8: 0.490 | AT8: 6 | AU8: 490 | AV8: – | AW8: 500 | AY8: 0.490 | AZ8: – | BA8: 0.500
A9: 7 | B9: 550 | C9: – | D9: 590 | F9: 0.550 | G9: – | H9: 0.590 | J9: 7 | K9: 472 | L9: – | M9: 531 | O9: 0.472 | P9: – | Q9: 0.531 | S9: 7 | T9: 510 | U9: – | V9: 550 | X9: 0.510 | Y9: – | Z9: 0.550 | AB9: 7 | AC9: 580 | AD9: – | AE9: 600 | AG9: 0.580 | AH9: – | AI9: 0.600 | AK9: 7 | AL9: 570 | AM9: – | AN9: 610 | AP9: 0.570 | AQ9: – | AR9: 0.610 | AT9: 7 | AU9: 590 | AV9: – | AW9: 600 | AY9: 0.590 | AZ9: – | BA9: 0.600
A10: 8 | B10: 660 | C10: – | D10: 710 | F10: 0.660 | G10: – | H10: 0.710 | J10: 8 | K10: 549 | L10: – | M10: 621 | O10: 0.549 | P10: – | Q10: 0.621 | S10: 8 | T10: 600 | U10: – | V10: 650 | X10: 0.600 | Y10: – | Z10: 0.650 | AB10: 8 | AC10: 700 | AD10: – | AE10: 720 | AG10: 0.700 | AH10: – | AI10: 0.720 | AK10: 8 | AL10: 680 | AM10: – | AN10: 720 | AP10: 0.680 | AQ10: – | AR10: 0.720 | AT10: 8 | AU10: 710 | AV10: – | AW10: 720 | AY10: 0.710 | AZ10: – | BA10: 0.720
A11: 9 | B11: 770 | C11: – | D11: 820 | F11: 0.770 | G11: – | H11: 0.820 | J11: 9 | K11: 649 | L11: – | M11: 721 | O11: 0.649 | P11: – | Q11: 0.721 | S11: 9 | T11: 700 | U11: – | V11: 740 | X11: 0.700 | Y11: – | Z11: 0.740 | AB11: 9 | AC11: 800 | AD11: – | AE11: 820 | AG11: 0.800 | AH11: – | AI11: 0.820 | AK11: 9 | AL11: 780 | AM11: – | AN11: 820 | AP11: 0.780 | AQ11: – | AR11: 0.820 | AT11: 9 | AU11: 810 | AV11: – | AW11: 820 | AY11: 0.810 | AZ11: – | BA11: 0.820
A12: 10 | B12: 870 | C12: – | D12: 930 | F12: 0.870 | G12: – | H12: 0.930 | J12: 10 | K12: 739 | L12: – | M12: 812 | O12: 0.739 | P12: – | Q12: 0.812 | S12: 10 | T12: 780 | U12: – | V12: 840 | X12: 0.780 | Y12: – | Z12: 0.840 | AB12: 10 | AC12: 910 | AD12: – | AE12: 930 | AG12: 0.910 | AH12: – | AI12: 0.930 | AK12: 10 | AL12: 870 | AM12: – | AN12: 930 | AP12: 0.870 | AQ12: – | AR12: 0.930 | AT12: 10 | AU12: 910 | AV12: – | AW12: 920 | AY12: 0.910 | AZ12: – | BA12: 0.920
A13: 11 | B13: 980 | C13: – | D13: 1040 | F13: 0.980 | G13: – | H13: 1.040 | J13: 11 | K13: 830 | L13: – | M13: 894 | O13: 0.830 | P13: – | Q13: 0.894 | S13: 11 | T13: 860 | U13: – | V13: 910 | X13: 0.860 | Y13: – | Z13: 0.910 | AB13: 11 | AC13: 1010 | AD13: – | AE13: 1030 | AG13: 1.010 | AH13: – | AI13: 1.030 | AK13: 11 | AL13: 970 | AM13: – | AN13: 1030 | AP13: 0.970 | AQ13: – | AR13: 1.030 | AT13: 11 | AU13: 1010 | AV13: – | AW13: 1020 | AY13: 1.010 | AZ13: – | BA13: 1.020
A14: 12 | B14: 1070 | C14: – | D14: 1130 | F14: 1.070 | G14: – | H14: 1.130 | J14: 12 | K14: 921 | L14: – | M14: 971 | O14: 0.921 | P14: – | Q14: 0.971 | S14: 12 | T14: 920 | U14: – | V14: 990 | X14: 0.920 | Y14: – | Z14: 0.990 | AB14: 12 | AC14: 1110 | AD14: – | AE14: 1130 | AG14: 1.110 | AH14: – | AI14: 1.130 | AK14: 12 | AL14: 1060 | AM14: – | AN14: 1120 | AP14: 1.060 | AQ14: – | AR14: 1.120 | AT14: 12 | AU14: 1110 | AV14: – | AW14: 1120 | AY14: 1.110 | AZ14: – | BA14: 1.120
A15: 13 | B15: 1150 | C15: – | D15: 1220 | F15: 1.150 | G15: – | H15: 1.220 | J15: 13 | K15: 980 | L15: – | M15: 1039 | O15: 0.980 | P15: – | Q15: 1.039 | S15: 13 | T15: 980 | U15: – | V15: 1050 | X15: 0.980 | Y15: – | Z15: 1.050 | AB15: 13 | AC15: 1180 | AD15: – | AE15: 1200 | AG15: 1.180 | AH15: – | AI15: 1.200 | AK15: 13 | AL15: 1150 | AM15: – | AN15: 1220 | AP15: 1.150 | AQ15: – | AR15: 1.220 | AT15: 13 | AU15: 1180 | AV15: – | AW15: 1190 | AY15: 1.180 | AZ15: – | BA15: 1.190
A16: 14 | B16: 1220 | C16: – | D16: 1290 | F16: 1.220 | G16: – | H16: 1.290 | J16: 14 | K16: 1039 | L16: – | M16: 1111 | O16: 1.039 | P16: – | Q16: 1.111 | S16: 14 | T16: 1030 | U16: – | V16: 1110 | X16: 1.030 | Y16: – | Z16: 1.110 | AB16: 14 | AC16: 1250 | AD16: – | AE16: 1280 | AG16: 1.250 | AH16: – | AI16: 1.280 | AK16: 14 | AL16: 1230 | AM16: – | AN16: 1310 | AP16: 1.230 | AQ16: – | AR16: 1.310 | AT16: 14 | AU16: 1240 | AV16: – | AW16: 1250 | AY16: 1.240 | AZ16: – | BA16: 1.250
A17: 15 | B17: 1290 | C17: – | D17: 1360 | F17: 1.290 | G17: – | H17: 1.360 | J17: 15 | K17: 1102 | L17: – | M17: 1161 | O17: 1.102 | P17: – | Q17: 1.161 | S17: 15 | T17: 1080 | U17: – | V17: 1160 | X17: 1.080 | Y17: – | Z17: 1.160 | AB17: 15 | AC17: 1310 | AD17: – | AE17: 1350 | AG17: 1.310 | AH17: – | AI17: 1.350 | AK17: 15 | AL17: 1320 | AM17: – | AN17: 1400 | AP17: 1.320 | AQ17: – | AR17: 1.400 | AT17: 15 | AU17: 1310 | AV17: – | AW17: 1320 | AY17: 1.310 | AZ17: – | BA17: 1.320
A18: 16 | B18: 1360 | C18: – | D18: 1430 | F18: 1.360 | G18: – | H18: 1.430 | J18: 16 | K18: 1152 | L18: – | M18: 1211 | O18: 1.152 | P18: – | Q18: 1.211 | S18: 16 | T18: 1130 | U18: – | V18: 1210 | X18: 1.130 | Y18: – | Z18: 1.210 | AB18: 16 | AC18: 1380 | AD18: – | AE18: 1420 | AG18: 1.380 | AH18: – | AI18: 1.420 | AK18: 16 | AL18: 1410 | AM18: – | AN18: 1490 | AP18: 1.410 | AQ18: – | AR18: 1.490 | AT18: 16 | AU18: 1380 | AV18: – | AW18: 1390 | AY18: 1.380 | AZ18: – | BA18: 1.390
A19: 17 | B19: 1420 | C19: – | D19: 1500 | F19: 1.420 | G19: – | H19: 1.500 | J19: 17 | K19: 1188 | L19: – | M19: 1252 | O19: 1.188 | P19: – | Q19: 1.252 | S19: 17 | T19: 1170 | U19: – | V19: 1250 | X19: 1.170 | Y19: – | Z19: 1.250 | AB19: 17 | AC19: 1440 | AD19: – | AE19: 1480 | AG19: 1.440 | AH19: – | AI19: 1.480 | AK19: 17 | AL19: 1500 | AM19: – | AN19: 1580 | AP19: 1.500 | AQ19: – | AR19: 1.580 | AT19: 17 | AU19: 1440 | AV19: – | AW19: 1450 | AY19: 1.440 | AZ19: – | BA19: 1.450
A20: 18 | B20: 1490 | C20: – | D20: 1610 | F20: 1.490 | G20: – | H20: 1.610 | J20: 18 | K20: =SUM(O20*1000) -> 1230 | L20: – | M20: =SUM(Q20*1000) -> 1300 | O20: 1.230 | P20: – | Q20: 1.300 | S20: 18 | T20: 1250 | U20: – | V20: 1270 | X20: 1.250 | Y20: – | Z20: 1.270 | AB20: 18 | AC20: 1450 | AD20: – | AE20: 1550 | AG20: 1.450 | AH20: – | AI20: 1.550 | AK20: 18 | AL20: 1560 | AM20: – | AN20: 1660 | AP20: 1.560 | AQ20: – | AR20: 1.660 | AT20: 18 | AU20: 1450 | AV20: – | AW20: 1500 | AY20: 1.450 | AZ20: – | BA20: 1.500
A21: 19 | B21: 1590 | C21: – | D21: 1700 | F21: 1.590 | G21: – | H21: 1.700 | J21: 19 | K21: =O21*1000 -> 1270 | L21: – | M21: =Q21*1000 -> 1370 | O21: 1.270 | P21: – | Q21: 1.370 | S21: 19 | T21: 1310 | U21: – | V21: 1330 | X21: 1.310 | Y21: – | Z21: 1.330 | AB21: 19 | AC21: 1490 | AD21: – | AE21: 1600 | AG21: 1.490 | AH21: – | AI21: 1.600 | AK21: 19 | AL21: 1650 | AM21: – | AN21: 1750 | AP21: 1.650 | AQ21: – | AR21: 1.750 | AT21: 19 | AU21: 1470 | AV21: – | AW21: 1520 | AY21: 1.470 | AZ21: – | BA21: 1.520
A22: 20 | B22: 1650 | C22: – | D22: 1770 | F22: 1.650 | G22: – | H22: 1.770 | J22: 20 | K22: 1320 | L22: – | M22: 1430 | O22: 1.320 | P22: – | Q22: 1.430 | S22: 20 | T22: 1370 | U22: – | V22: 1390 | X22: 1.370 | Y22: – | Z22: 1.390 | AB22: 20 | AC22: 1590 | AD22: – | AE22: 1650 | AG22: 1.590 | AH22: – | AI22: 1.650 | AK22: 20 | AL22: 1710 | AM22: – | AN22: 1810 | AP22: 1.710 | AQ22: – | AR22: 1.810 | AT22: 20 | AU22: 1520 | AV22: – | AW22: 1570 | AY22: 1.520 | AZ22: – | BA22: 1.570
A23: 21 | B23: 1700 | C23: – | D23: 1810 | F23: 1.700 | G23: – | H23: 1.810 | J23: 21 | K23: 1380 | L23: – | M23: 1470 | O23: 1.380 | P23: – | Q23: 1.470 | S23: 21 | T23: 1390 | U23: – | V23: 1440 | X23: 1.390 | Y23: – | Z23: 1.440 | AB23: 21 | AC23: 1670 | AD23: – | AE23: 1700 | AG23: 1.670 | AH23: – | AI23: 1.700 | AK23: 21 | AL23: 1730 | AM23: – | AN23: 1830 | AP23: 1.730 | AQ23: – | AR23: 1.830 | AT23: 21 | AU23: 1590 | AV23: – | AW23: 1640 | AY23: 1.590 | AZ23: – | BA23: 1.640
A24: 22 | B24: 1750 | C24: – | D24: 1850 | F24: 1.750 | G24: – | H24: 1.850 | J24: 22 | K24: 1410 | L24: – | M24: 1490 | O24: 1.410 | P24: – | Q24: 1.490 | S24: 22 | T24: 1430 | U24: – | V24: 1460 | X24: 1.430 | Y24: – | Z24: 1.460 | AB24: 22 | AC24: 1710 | AD24: – | AE24: 1750 | AG24: 1.710 | AH24: – | AI24: 1.750 | AK24: 22 | AL24: 1750 | AM24: – | AN24: 1850 | AP24: 1.750 | AQ24: – | AR24: 1.850 | AT24: 22 | AU24: 1700 | AV24: – | AW24: 1750 | AY24: 1.700 | AZ24: – | BA24: 1.750
A25: 23 | B25: 1780 | C25: – | D25: 1880 | F25: 1.780 | G25: – | H25: 1.880 | J25: 23 | K25: 1430 | L25: – | M25: 1500 | O25: 1.430 | P25: – | Q25: 1.500 | S25: 23 | T25: 1460 | U25: – | V25: 1500 | X25: 1.460 | Y25: – | Z25: 1.500 | AB25: 23 | AC25: 1730 | AD25: – | AE25: 1800 | AG25: 1.730 | AH25: – | AI25: 1.800 | AK25: 23 | AL25: 1770 | AM25: – | AN25: 1870 | AP25: 1.770 | AQ25: – | AR25: 1.870 | AT25: 23 | AU25: 1720 | AV25: – | AW25: 1770 | AY25: 1.720 | AZ25: – | BA25: 1.770
A26: 24 | B26: 1810 | C26: – | D26: 1910 | F26: 1.810 | G26: – | H26: 1.910 | J26: 24 | K26: 1450 | L26: – | M26: 1510 | O26: 1.450 | P26: – | Q26: 1.510 | S26: 24 | T26: 1480 | U26: – | V26: 1540 | X26: 1.480 | Y26: – | Z26: 1.540 | AB26: 24 | AC26: 1740 | AD26: – | AE26: 1830 | AG26: 1.740 | AH26: – | AI26: 1.830 | AK26: 24 | AL26: 1780 | AM26: – | AN26: 1900 | AP26: 1.780 | AQ26: – | AR26: 1.900 | AT26: 24 | AU26: 1740 | AV26: – | AW26: 1790 | AY26: 1.740 | AZ26: – | BA26: 1.790
A27: 25 | B27: 1820 | C27: – | D27: 1930 | F27: 1.820 | G27: – | H27: 1.930 | J27: 25 | K27: 1470 | L27: – | M27: 1530 | O27: 1.470 | P27: – | Q27: 1.530 | S27: 25 | T27: 1500 | U27: – | V27: 1580 | X27: 1.500 | Y27: – | Z27: 1.580 | AB27: 25 | AC27: 1760 | AD27: – | AE27: 1850 | AG27: 1.760 | AH27: – | AI27: 1.850 | AK27: 25 | AL27: 1800 | AM27: – | AN27: 1920 | AP27: 1.800 | AQ27: – | AR27: 1.920 | AT27: 25 | AU27: 1760 | AV27: – | AW27: 1810 | AY27: 1.760 | AZ27: – | BA27: 1.810
A28: 26 | B28: 1830 | C28: – | D28: 1940 | F28: 1.830 | G28: – | H28: 1.940 | J28: 26 | K28: 1480 | L28: – | M28: 1540 | O28: 1.480 | P28: – | Q28: 1.540 | S28: 26 | T28: 1520 | U28: – | V28: 1610 | X28: 1.520 | Y28: – | Z28: 1.610 | AB28: 26 | AC28: 1770 | AD28: – | AE28: 1870 | AG28: 1.770 | AH28: – | AI28: 1.870 | AK28: 26 | AL28: 1820 | AM28: – | AN28: 1940 | AP28: 1.820 | AQ28: – | AR28: 1.940 | AT28: 26 | AU28: 1780 | AV28: – | AW28: 1830 | AY28: 1.780 | AZ28: – | BA28: 1.830
A29: 27 | B29: 1850 | C29: – | D29: 1950 | F29: 1.850 | G29: – | H29: 1.950 | J29: 27 | K29: 1480 | L29: – | M29: 1550 | O29: 1.480 | P29: – | Q29: 1.550 | S29: 27 | T29: 1540 | U29: – | V29: 1620 | X29: 1.540 | Y29: – | Z29: 1.620 | AB29: 27 | AC29: 1780 | AD29: – | AE29: 1890 | AG29: 1.780 | AH29: – | AI29: 1.890 | AK29: 27 | AL29: 1840 | AM29: – | AN29: 1960 | AP29: 1.840 | AQ29: – | AR29: 1.960 | AT29: 27 | AU29: 1790 | AV29: – | AW29: 1840 | AY29: 1.790 | AZ29: – | BA29: 1.840
A30: 28 | B30: 1860 | C30: – | D30: 1970 | F30: 1.860 | G30: – | H30: 1.970 | J30: 28 | K30: 1490 | L30: – | M30: 1550 | O30: 1.490 | P30: – | Q30: 1.550 | S30: 28 | T30: 1550 | U30: – | V30: 1660 | X30: 1.550 | Y30: – | Z30: 1.660 | AB30: 28 | AC30: 1800 | AD30: – | AE30: 1900 | AG30: 1.800 | AH30: – | AI30: 1.900 | AK30: 28 | AL30: 1850 | AM30: – | AN30: 1970 | AP30: 1.850 | AQ30: – | AR30: 1.970 | AT30: 28 | AU30: 1800 | AV30: – | AW30: 1850 | AY30: 1.800 | AZ30: – | BA30: 1.850
A31: 29 | B31: 1870 | C31: – | D31: 1980 | F31: 1.870 | G31: – | H31: 1.980 | J31: 29 | K31: 1500 | L31: – | M31: 1560 | O31: 1.500 | P31: – | Q31: 1.560 | S31: 29 | T31: 1560 | U31: – | V31: 1670 | X31: 1.560 | Y31: – | Z31: 1.670 | AB31: 29 | AC31: 1810 | AD31: – | AE31: 1910 | AG31: 1.810 | AH31: – | AI31: 1.910 | AK31: 29 | AL31: 1860 | AM31: – | AN31: 1980 | AP31: 1.860 | AQ31: – | AR31: 1.980 | AT31: 29 | AU31: 1810 | AV31: – | AW31: 1860 | AY31: 1.810 | AZ31: – | BA31: 1.860
A32: 30 | B32: 1870 | C32: – | D32: 1980 | F32: 1.870 | G32: – | H32: 1.980 | J32: 30 | K32: 1500 | L32: – | M32: 1560 | O32: 1.500 | P32: – | Q32: 1.560 | S32: 30 | T32: 1570 | U32: – | V32: 1690 | X32: 1.570 | Y32: – | Z32: 1.690 | AB32: 30 | AC32: 1820 | AD32: – | AE32: 1920 | AG32: 1.820 | AH32: – | AI32: 1.920 | AK32: 30 | AL32: 1870 | AM32: – | AN32: 1990 | AP32: 1.870 | AQ32: – | AR32: 1.990 | AT32: 30 | AU32: 1820 | AV32: – | AW32: 1870 | AY32: 1.820 | AZ32: – | BA32: 1.870
A33: 31 | B33: 1870 | C33: – | D33: 1980 | F33: 1.870 | G33: – | H33: 1.980 | J33: 31 | K33: 1510 | L33: – | M33: 1570 | O33: 1.510 | P33: – | Q33: 1.570 | S33: 31 | T33: 1580 | U33: – | V33: 1700 | X33: 1.580 | Y33: – | Z33: 1.700 | AB33: 31 | AC33: 1830 | AD33: – | AE33: 1930 | AG33: 1.830 | AH33: – | AI33: 1.930 | AK33: 31 | AL33: 1880 | AM33: – | AN33: 2000 | AP33: 1.880 | AQ33: – | AR33: 2.000 | AT33: 31 | AU33: 1830 | AV33: – | AW33: 1880 | AY33: 1.830 | AZ33: – | BA33: 1.880
A34: 32 | B34: 1880 | C34: – | D34: 1990 | F34: 1.880 | G34: – | H34: 1.990 | J34: 32 | K34: 1510 | L34: – | M34: 1570 | O34: 1.510 | P34: – | Q34: 1.570 | S34: 32 | T34: 1590 | U34: – | V34: 1710 | X34: 1.590 | Y34: – | Z34: 1.710 | AB34: 32 | AC34: 1840 | AD34: – | AE34: 1930 | AG34: 1.840 | AH34: – | AI34: 1.930 | AK34: 32 | AL34: 1890 | AM34: – | AN34: 2010 | AP34: 1.890 | AQ34: – | AR34: 2.010 | AT34: 32 | AU34: 1840 | AV34: – | AW34: 1890 | AY34: 1.840 | AZ34: – | BA34: 1.890
A35: 33 | B35: 1880 | C35: – | D35: 1990 | F35: 1.880 | G35: – | H35: 1.990 | J35: 33 | K35: 1520 | L35: – | M35: 1580 | O35: 1.520 | P35: – | Q35: 1.580 | S35: 33 | T35: 1590 | U35: – | V35: 1710 | X35: 1.590 | Y35: – | Z35: 1.710 | AB35: 33 | AC35: 1850 | AD35: – | AE35: 1940 | AG35: 1.850 | AH35: – | AI35: 1.940 | AK35: 33 | AL35: 1900 | AM35: – | AN35: 2020 | AP35: 1.900 | AQ35: – | AR35: 2.020 | AT35: 33 | AU35: 1850 | AV35: – | AW35: 1900 | AY35: 1.850 | AZ35: – | BA35: 1.900
A36: 34 | B36: 1890 | C36: – | D36: 2000 | F36: 1.890 | G36: – | H36: 2.000 | J36: 34 | K36: 1520 | L36: – | M36: 1580 | O36: 1.520 | P36: – | Q36: 1.580 | S36: 34 | T36: 1590 | U36: – | V36: 1710 | X36: 1.590 | Y36: – | Z36: 1.710 | AB36: 34 | AC36: 1850 | AD36: – | AE36: 1940 | AG36: 1.850 | AH36: – | AI36: 1.940 | AK36: 34 | AL36: 1910 | AM36: – | AN36: 2030 | AP36: 1.910 | AQ36: – | AR36: 2.030 | AT36: 34 | AU36: 1860 | AV36: – | AW36: 1910 | AY36: 1.860 | AZ36: – | BA36: 1.910
A37: 35 | B37: 1890 | C37: – | D37: 2000 | F37: 1.890 | G37: – | H37: 2.000 | J37: 35 | K37: 1530 | L37: – | M37: 1590 | O37: 1.530 | P37: – | Q37: 1.590 | S37: 35 | T37: 1590 | U37: – | V37: 1710 | X37: 1.590 | Y37: – | Z37: 1.710 | AB37: 35 | AC37: 1860 | AD37: – | AE37: 1950 | AG37: 1.860 | AH37: – | AI37: 1.950 | AK37: 35 | AL37: 1920 | AM37: – | AN37: 2040 | AP37: 1.920 | AQ37: – | AR37: 2.040 | AT37: 35 | AU37: 1860 | AV37: – | AW37: 1910 | AY37: 1.860 | AZ37: – | BA37: 1.910
A38: 36 | B38: 1890 | C38: – | D38: 2000 | F38: 1.890 | G38: – | H38: 2.000 | J38: 36 | K38: 1530 | L38: – | M38: 1590 | O38: 1.530 | P38: – | Q38: 1.590 | S38: 36 | T38: 1590 | U38: – | V38: 1710 | X38: 1.590 | Y38: – | Z38: 1.710 | AB38: 36 | AC38: 1860 | AD38: – | AE38: 1950 | AG38: 1.860 | AH38: – | AI38: 1.950 | AK38: 36 | AL38: 1930 | AM38: – | AN38: 2050 | AP38: 1.930 | AQ38: – | AR38: 2.050 | AT38: 36 | AU38: 1870 | AV38: – | AW38: 1920 | AY38: 1.870 | AZ38: – | BA38: 1.920
A39: 37 | B39: 1890 | C39: – | D39: 2000 | F39: 1.890 | G39: – | H39: 2.000 | J39: 37 | K39: 1530 | L39: – | M39: 1590 | O39: 1.530 | P39: – | Q39: 1.590 | S39: 37 | T39: 1590 | U39: – | V39: 1710 | X39: 1.590 | Y39: – | Z39: 1.710 | AB39: 37 | AC39: 1860 | AD39: – | AE39: 1950 | AG39: 1.860 | AH39: – | AI39: 1.950 | AK39: 37 | AL39: 1940 | AM39: – | AN39: 2060 | AP39: 1.940 | AQ39: – | AR39: 2.060 | AT39: 37 | AU39: 1870 | AV39: – | AW39: 1920 | AY39: 1.870 | AZ39: – | BA39: 1.920
A40: 38 | B40: 1890 | C40: – | D40: 2010 | F40: 1.890 | G40: – | H40: 2.010 | J40: 38 | K40: 1540 | L40: – | M40: 1600 | O40: 1.540 | P40: – | Q40: 1.600 | S40: 38 | T40: 1590 | U40: – | V40: 1710 | X40: 1.590 | Y40: – | Z40: 1.710 | AB40: 38 | AC40: 1870 | AD40: – | AE40: 1950 | AG40: 1.870 | AH40: – | AI40: 1.950 | AK40: 38 | AL40: 1950 | AM40: – | AN40: 2070 | AP40: 1.950 | AQ40: – | AR40: 2.070 | AT40: 38 | AU40: 1880 | AV40: – | AW40: 1930 | AY40: 1.880 | AZ40: – | BA40: 1.930
A41: 39 | B41: 1900 | C41: – | D41: 2010 | F41: 1.900 | G41: – | H41: 2.010 | J41: 39 | K41: 1540 | L41: – | M41: 1600 | O41: 1.540 | P41: – | Q41: 1.600 | S41: 39 | T41: 1590 | U41: – | V41: 1710 | X41: 1.590 | Y41: – | Z41: 1.710 | AB41: 39 | AC41: 1870 | AD41: – | AE41: 1950 | AG41: 1.870 | AH41: – | AI41: 1.950 | AK41: 39 | AL41: 1950 | AM41: – | AN41: 2070 | AP41: 1.950 | AQ41: – | AR41: 2.070 | AT41: 39 | AU41: 1890 | AV41: – | AW41: 1940 | AY41: 1.890 | AZ41: – | BA41: 1.940
A42: 40 | B42: 1900 | C42: – | D42: 2010 | F42: 1.900 | G42: – | H42: 2.010 | J42: 40 | K42: 1540 | L42: – | M42: 1600 | O42: 1.540 | P42: – | Q42: 1.600 | S42: 40 | T42: 1590 | U42: – | V42: 1710 | X42: 1.590 | Y42: – | Z42: 1.710 | AB42: 40 | AC42: 1870 | AD42: – | AE42: 1950 | AG42: 1.870 | AH42: – | AI42: 1.950 | AK42: 40 | AL42: 1960 | AM42: – | AN42: 2080 | AP42: 1.960 | AQ42: – | AR42: 2.080 | AT42: 40 | AU42: 1900 | AV42: – | AW42: 1950 | AY42: 1.900 | AZ42: – | BA42: 1.950
A43: 41 | B43: 1900 | C43: – | D43: 2020 | F43: 1.900 | G43: – | H43: 2.020 | J43: 41 | K43: 1540 | L43: – | M43: 1600 | O43: 1.540 | P43: – | Q43: 1.600 | S43: 41 | T43: 1590 | U43: – | V43: 1710 | X43: 1.590 | Y43: – | Z43: 1.710 | AB43: 41 | AC43: 1870 | AD43: – | AE43: 1950 | AG43: 1.870 | AH43: – | AI43: 1.950 | AK43: 41 | AL43: 1960 | AM43: – | AN43: 2080 | AP43: 1.960 | AQ43: – | AR43: 2.080 | AT43: 41 | AU43: 1910 | AV43: – | AW43: 1960 | AY43: 1.910 | AZ43: – | BA43: 1.960
A44: 42 | B44: 1910 | C44: – | D44: 2020 | F44: 1.910 | G44: – | H44: 2.020 | J44: 42 | K44: 1550 | L44: – | M44: 1610 | O44: 1.550 | P44: – | Q44: 1.610 | S44: 42 | T44: 1590 | U44: – | V44: 1710 | X44: 1.590 | Y44: – | Z44: 1.710 | AB44: 42 | AC44: 1870 | AD44: – | AE44: 1950 | AG44: 1.870 | AH44: – | AI44: 1.950 | AK44: 42 | AL44: 1960 | AM44: – | AN44: 2080 | AP44: 1.960 | AQ44: – | AR44: 2.080 | AT44: 42 | AU44: 1920 | AV44: – | AW44: 1970 | AY44: 1.920 | AZ44: – | BA44: 1.970
A45: 43 | B45: 1910 | C45: – | D45: 2020 | F45: 1.910 | G45: – | H45: 2.020 | J45: 43 | K45: 1550 | L45: – | M45: 1610 | O45: 1.550 | P45: – | Q45: 1.610 | S45: 43 | T45: 1600 | U45: – | V45: 1710 | X45: 1.600 | Y45: – | Z45: 1.710 | AB45: 43 | AC45: 1870 | AD45: – | AE45: 1950 | AG45: 1.870 | AH45: – | AI45: 1.950 | AK45: 43 | AL45: 1960 | AM45: – | AN45: 2080 | AP45: 1.960 | AQ45: – | AR45: 2.080 | AT45: 43 | AU45: 1930 | AV45: – | AW45: 1980 | AY45: 1.930 | AZ45: – | BA45: 1.980
A46: 44 | B46: 1910 | C46: – | D46: 2020 | F46: 1.910 | G46: – | H46: 2.020 | J46: 44 | K46: 1550 | L46: – | M46: 1610 | O46: 1.550 | P46: – | Q46: 1.610 | S46: 44 | T46: 1600 | U46: – | V46: 1710 | X46: 1.600 | Y46: – | Z46: 1.710 | AB46: 44 | AC46: 1880 | AD46: – | AE46: 1950 | AG46: 1.880 | AH46: – | AI46: 1.950 | AK46: 44 | AL46: 1970 | AM46: – | AN46: 2090 | AP46: 1.970 | AQ46: – | AR46: 2.090 | AT46: 44 | AU46: 1940 | AV46: – | AW46: 1990 | AY46: 1.940 | AZ46: – | BA46: 1.990
A47: 45 | B47: 1920 | C47: – | D47: 2030 | F47: 1.920 | G47: – | H47: 2.030 | J47: 45 | K47: 1550 | L47: – | M47: 1610 | O47: 1.550 | P47: – | Q47: 1.610 | S47: 45 | T47: 1600 | U47: – | V47: 1710 | X47: 1.600 | Y47: – | Z47: 1.710 | AB47: 45 | AC47: 1880 | AD47: – | AE47: 1950 | AG47: 1.880 | AH47: – | AI47: 1.950 | AK47: 45 | AL47: 1970 | AM47: – | AN47: 2090 | AP47: 1.970 | AQ47: – | AR47: 2.090 | AT47: 45 | AU47: 1950 | AV47: – | AW47: 2000 | AY47: 1.950 | AZ47: – | BA47: 2.000
A48: 46 | B48: 1920 | C48: – | D48: 2030 | F48: 1.920 | G48: – | H48: 2.030 | J48: 46 | K48: 1550 | L48: – | M48: 1610 | O48: 1.550 | P48: – | Q48: 1.610 | S48: 46 | T48: 1600 | U48: – | V48: 1720 | X48: 1.600 | Y48: – | Z48: 1.720 | AB48: 46 | AC48: 1880 | AD48: – | AE48: 1960 | AG48: 1.880 | AH48: – | AI48: 1.960 | AK48: 46 | AL48: 1970 | AM48: – | AN48: 2090 | AP48: 1.970 | AQ48: – | AR48: 2.090 | AT48: 46 | AU48: 1960 | AV48: – | AW48: 2010 | AY48: 1.960 | AZ48: – | BA48: 2.010
A49: 47 | B49: 1920 | C49: – | D49: 2030 | F49: 1.920 | G49: – | H49: 2.030 | J49: 47 | K49: 1550 | L49: – | M49: 1610 | O49: 1.550 | P49: – | Q49: 1.610 | S49: 47 | T49: 1600 | U49: – | V49: 1720 | X49: 1.600 | Y49: – | Z49: 1.720 | AB49: 47 | AC49: 1880 | AD49: – | AE49: 1960 | AG49: 1.880 | AH49: – | AI49: 1.960 | AK49: 47 | AL49: 1970 | AM49: – | AN49: 2090 | AP49: 1.970 | AQ49: – | AR49: 2.090 | AT49: 47 | AU49: 1970 | AV49: – | AW49: 2020 | AY49: 1.970 | AZ49: – | BA49: 2.020
A50: 48 | B50: 1920 | C50: – | D50: 2030 | F50: 1.920 | G50: – | H50: 2.030 | J50: 48 | K50: 1550 | L50: – | M50: 1610 | O50: 1.550 | P50: – | Q50: 1.610 | S50: 48 | T50: 1600 | U50: – | V50: 1720 | X50: 1.600 | Y50: – | Z50: 1.720 | AB50: 48 | AC50: 1880 | AD50: – | AE50: 1960 | AG50: 1.880 | AH50: – | AI50: 1.960 | AK50: 48 | AL50: 1980 | AM50: – | AN50: 2100 | AP50: 1.980 | AQ50: – | AR50: 2.100 | AT50: 48 | AU50: 1980 | AV50: – | AW50: 2030 | AY50: 1.980 | AZ50: – | BA50: 2.030
A51: 49 | B51: 1920 | C51: – | D51: 2030 | F51: 1.920 | G51: – | H51: 2.030 | J51: 49 | K51: 1550 | L51: – | M51: 1610 | O51: 1.550 | P51: – | Q51: 1.610 | S51: 49 | T51: 1600 | U51: – | V51: 1720 | X51: 1.600 | Y51: – | Z51: 1.720 | AB51: 49 | AC51: 1880 | AD51: – | AE51: 1960 | AG51: 1.880 | AH51: – | AI51: 1.960 | AK51: 49 | AL51: 1980 | AM51: – | AN51: 2100 | AP51: 1.980 | AQ51: – | AR51: 2.100 | AT51: 49 | AU51: 1990 | AV51: – | AW51: 2040 | AY51: 1.990 | AZ51: – | BA51: 2.040
A52: 50 | B52: 1920 | C52: – | D52: 2030 | F52: 1.920 | G52: – | H52: 2.030 | J52: 50 | K52: 1550 | L52: – | M52: 1610 | O52: 1.550 | P52: – | Q52: 1.610 | S52: 50 | T52: 1600 | U52: – | V52: 1720 | X52: 1.600 | Y52: – | Z52: 1.720 | AB52: 50 | AC52: 1880 | AD52: – | AE52: 1960 | AG52: 1.880 | AH52: – | AI52: 1.960 | AK52: 50 | AL52: 1980 | AM52: – | AN52: 2100 | AP52: 1.980 | AQ52: – | AR52: 2.100 | AT52: 50 | AU52: 1990 | AV52: – | AW52: 2040 | AY52: 1.990 | AZ52: – | BA52: 2.040
A53: 51 | B53: 1920 | C53: – | D53: 2030 | F53: 1.920 | G53: – | H53: 2.030 | J53: 51 | K53: 1550 | L53: – | M53: 1610 | O53: 1.550 | P53: – | Q53: 1.610 | S53: 51 | T53: 1600 | U53: – | V53: 1720 | X53: 1.600 | Y53: – | Z53: 1.720 | AB53: 51 | AC53: 1880 | AD53: – | AE53: 1960 | AG53: 1.880 | AH53: – | AI53: 1.960 | AK53: 51 | AL53: 1980 | AM53: – | AN53: 2100 | AP53: 1.980 | AQ53: – | AR53: 2.100 | AT53: 51 | AU53: 1990 | AV53: – | AW53: 2040 | AY53: 1.990 | AZ53: – | BA53: 2.040
A54: 52 | B54: 1920 | C54: – | D54: 2030 | F54: 1.920 | G54: – | H54: 2.030 | J54: 52 | K54: 1550 | L54: – | M54: 1610 | O54: 1.550 | P54: – | Q54: 1.610 | S54: 52 | T54: 1600 | U54: – | V54: 1720 | X54: 1.600 | Y54: – | Z54: 1.720 | AB54: 52 | AC54: 1880 | AD54: – | AE54: 1960 | AG54: 1.880 | AH54: – | AI54: 1.960 | AK54: 52 | AL54: 1990 | AM54: – | AN54: 2110 | AP54: 1.990 | AQ54: – | AR54: 2.110 | AT54: 52 | AU54: 1990 | AV54: – | AW54: 2040 | AY54: 1.990 | AZ54: – | BA54: 2.040
A55: 53 | B55: 1920 | C55: – | D55: 2030 | F55: 1.920 | G55: – | H55: 2.030 | J55: 53 | K55: 1550 | L55: – | M55: 1610 | O55: 1.550 | P55: – | Q55: 1.610 | S55: 53 | T55: 1610 | U55: – | V55: 1720 | X55: 1.610 | Y55: – | Z55: 1.720 | AB55: 53 | AC55: 1880 | AD55: – | AE55: 1960 | AG55: 1.880 | AH55: – | AI55: 1.960 | AK55: 53 | AL55: 1990 | AM55: – | AN55: 2110 | AP55: 1.990 | AQ55: – | AR55: 2.110 | AT55: 53 | AU55: 1990 | AV55: – | AW55: 2040 | AY55: 1.990 | AZ55: – | BA55: 2.040
A56: 54 | B56: 1920 | C56: – | D56: 2030 | F56: 1.920 | G56: – | H56: 2.030 | J56: 54 | K56: 1550 | L56: – | M56: 1610 | O56: 1.550 | P56: – | Q56: 1.610 | S56: 54 | T56: 1610 | U56: – | V56: 1720 | X56: 1.610 | Y56: – | Z56: 1.720 | AB56: 54 | AC56: 1890 | AD56: – | AE56: 1960 | AG56: 1.890 | AH56: – | AI56: 1.960 | AK56: 54 | AL56: 1990 | AM56: – | AN56: 2110 | AP56: 1.990 | AQ56: – | AR56: 2.110 | AT56: 54 | AU56: 1990 | AV56: – | AW56: 2040 | AY56: 1.990 | AZ56: – | BA56: 2.040
A57: 55 | B57: 1930 | C57: – | D57: 2040 | F57: 1.930 | G57: – | H57: 2.040 | J57: 55 | K57: 1550 | L57: – | M57: 1610 | O57: 1.550 | P57: – | Q57: 1.610 | S57: 55 | T57: 1610 | U57: – | V57: 1720 | X57: 1.610 | Y57: – | Z57: 1.720 | AB57: 55 | AC57: 1890 | AD57: – | AE57: 1960 | AG57: 1.890 | AH57: – | AI57: 1.960 | AK57: 55 | AL57: 1990 | AM57: – | AN57: 2110 | AP57: 1.990 | AQ57: – | AR57: 2.110 | AT57: 55 | AU57: 1990 | AV57: – | AW57: 2040 | AY57: 1.990 | AZ57: – | BA57: 2.040
A58: 56 | B58: 1930 | C58: – | D58: 2040 | F58: 1.930 | G58: – | H58: 2.040 | J58: 56 | K58: 1550 | L58: – | M58: 1610 | O58: 1.550 | P58: – | Q58: 1.610 | S58: 56 | T58: 1610 | U58: – | V58: 1720 | X58: 1.610 | Y58: – | Z58: 1.720 | AB58: 56 | AC58: 1890 | AD58: – | AE58: 1970 | AG58: 1.890 | AH58: – | AI58: 1.970 | AK58: 56 | AL58: 2000 | AM58: – | AN58: 2120 | AP58: 2.000 | AQ58: – | AR58: 2.120 | AT58: 56 | AU58: 2000 | AV58: – | AW58: 2050 | AY58: 2.000 | AZ58: – | BA58: 2.050
A59: 57 | B59: 1930 | C59: – | D59: 2040 | F59: 1.930 | G59: – | H59: 2.040 | J59: 57 | K59: 1550 | L59: – | M59: 1610 | O59: 1.550 | P59: – | Q59: 1.610 | S59: 57 | T59: 1610 | U59: – | V59: 1720 | X59: 1.610 | Y59: – | Z59: 1.720 | AB59: 57 | AC59: 1890 | AD59: – | AE59: 1970 | AG59: 1.890 | AH59: – | AI59: 1.970 | AK59: 57 | AL59: 2000 | AM59: – | AN59: 2120 | AP59: 2.000 | AQ59: – | AR59: 2.120 | AT59: 57 | AU59: 2000 | AV59: – | AW59: 2050 | AY59: 2.000 | AZ59: – | BA59: 2.050
A60: 58 | B60: 1930 | C60: – | D60: 2040 | F60: 1.930 | G60: – | H60: 2.040 | J60: 58 | K60: 1550 | L60: – | M60: 1610 | O60: 1.550 | P60: – | Q60: 1.610 | S60: 58 | T60: 1610 | U60: – | V60: 1720 | X60: 1.610 | Y60: – | Z60: 1.720 | AB60: 58 | AC60: 1890 | AD60: – | AE60: 1970 | AG60: 1.890 | AH60: – | AI60: 1.970 | AK60: 58 | AL60: 2000 | AM60: – | AN60: 2120 | AP60: 2.000 | AQ60: – | AR60: 2.120 | AT60: 58 | AU60: 2000 | AV60: – | AW60: 2050 | AY60: 2.000 | AZ60: – | BA60: 2.050
A61: 59 | B61: 1930 | C61: – | D61: 2040 | F61: 1.930 | G61: – | H61: 2.040 | J61: 59 | K61: 1550 | L61: – | M61: 1610 | O61: 1.550 | P61: – | Q61: 1.610 | S61: 59 | T61: 1610 | U61: – | V61: 1720 | X61: 1.610 | Y61: – | Z61: 1.720 | AB61: 59 | AC61: 1890 | AD61: – | AE61: 1970 | AG61: 1.890 | AH61: – | AI61: 1.970 | AK61: 59 | AL61: 2000 | AM61: – | AN61: 2120 | AP61: 2.000 | AQ61: – | AR61: 2.120 | AT61: 59 | AU61: 2000 | AV61: – | AW61: 2050 | AY61: 2.000 | AZ61: – | BA61: 2.050
A62: 60 | B62: 1930 | C62: – | D62: 2040 | F62: 1.930 | G62: – | H62: 2.040 | J62: 60 | K62: 1550 | L62: – | M62: 1610 | O62: 1.550 | P62: – | Q62: 1.610 | S62: 60 | T62: 1610 | U62: – | V62: 1730 | X62: 1.610 | Y62: – | Z62: 1.730 | AB62: 60 | AC62: 1890 | AD62: – | AE62: 1970 | AG62: 1.890 | AH62: – | AI62: 1.970 | AK62: 60 | AL62: 2000 | AM62: – | AN62: 2120 | AP62: 2.000 | AQ62: – | AR62: 2.120 | AT62: 60 | AU62: 2010 | AV62: – | AW62: 2060 | AY62: 2.010 | AZ62: – | BA62: 2.060
A63: 61 | B63: 1930 | C63: – | D63: 2040 | F63: 1.930 | G63: – | H63: 2.040 | J63: 61 | K63: 1550 | L63: – | M63: 1610 | O63: 1.550 | P63: – | Q63: 1.610 | S63: 61 | T63: 1610 | U63: – | V63: 1730 | X63: 1.610 | Y63: – | Z63: 1.730 | AB63: 61 | AC63: 1890 | AD63: – | AE63: 1970 | AG63: 1.890 | AH63: – | AI63: 1.970 | AK63: 61 | AL63: 2000 | AM63: – | AN63: 2120 | AP63: 2.000 | AQ63: – | AR63: 2.120 | AT63: 61 | AU63: 2010 | AV63: – | AW63: 2060 | AY63: 2.010 | AZ63: – | BA63: 2.060
A64: 62 | B64: 1930 | C64: – | D64: 2040 | F64: 1.930 | G64: – | H64: 2.040 | J64: 62 | K64: 1550 | L64: – | M64: 1610 | O64: 1.550 | P64: – | Q64: 1.610 | S64: 62 | T64: 1610 | U64: – | V64: 1730 | X64: 1.610 | Y64: – | Z64: 1.730 | AB64: 62 | AC64: 1890 | AD64: – | AE64: 1970 | AG64: 1.890 | AH64: – | AI64: 1.970 | AK64: 62 | AL64: 2000 | AM64: – | AN64: 2120 | AP64: 2.000 | AQ64: – | AR64: 2.120 | AT64: 62 | AU64: 2010 | AV64: – | AW64: 2060 | AY64: 2.010 | AZ64: – | BA64: 2.060
A65: 63 | B65: 1930 | C65: – | D65: 2040 | F65: 1.930 | G65: – | H65: 2.040 | J65: 63 | K65: 1550 | L65: – | M65: 1610 | O65: 1.550 | P65: – | Q65: 1.610 | S65: 63 | T65: 1620 | U65: – | V65: 1730 | X65: 1.620 | Y65: – | Z65: 1.730 | AB65: 63 | AC65: 1890 | AD65: – | AE65: 1970 | AG65: 1.890 | AH65: – | AI65: 1.970 | AK65: 63 | AL65: 2000 | AM65: – | AN65: 2120 | AP65: 2.000 | AQ65: – | AR65: 2.120 | AT65: 63 | AU65: 2010 | AV65: – | AW65: 2060 | AY65: 2.010 | AZ65: – | BA65: 2.060
A66: 64 | B66: 1930 | C66: – | D66: 2040 | F66: 1.930 | G66: – | H66: 2.040 | J66: 64 | K66: 1550 | L66: – | M66: 1610 | O66: 1.550 | P66: – | Q66: 1.610 | S66: 64 | T66: 1620 | U66: – | V66: 1730 | X66: 1.620 | Y66: – | Z66: 1.730 | AB66: 64 | AC66: 1890 | AD66: – | AE66: 1970 | AG66: 1.890 | AH66: – | AI66: 1.970 | AK66: 64 | AL66: 2000 | AM66: – | AN66: 2120 | AP66: 2.000 | AQ66: – | AR66: 2.120 | AT66: 64 | AU66: 2010 | AV66: – | AW66: 2060 | AY66: 2.010 | AZ66: – | BA66: 2.060
A67: 65 | B67: 1930 | C67: – | D67: 2040 | F67: 1.930 | G67: – | H67: 2.040 | J67: 65 | K67: 1550 | L67: – | M67: 1610 | O67: 1.550 | P67: – | Q67: 1.610 | S67: 65 | T67: 1620 | U67: – | V67: 1730 | X67: 1.620 | Y67: – | Z67: 1.730 | AB67: 65 | AC67: 1890 | AD67: – | AE67: 1970 | AG67: 1.890 | AH67: – | AI67: 1.970 | AK67: 65 | AL67: 2000 | AM67: – | AN67: 2120 | AP67: 2.000 | AQ67: – | AR67: 2.120 | AT67: 65 | AU67: 2010 | AV67: – | AW67: 2060 | AY67: 2.010 | AZ67: – | BA67: 2.060
A68: 66 | B68: =SUM(F68*1000) -> 1930 | C68: – | D68: =SUM(H68*1000) -> 2040 | F68: 1.930 | G68: – | H68: 2.040 | J68: 66 | K68: 1550 | L68: – | M68: 1610 | O68: 1.550 | P68: – | Q68: 1.610 | S68: 66 | T68: =SUM(X68*1000) -> 1620 | U68: – | V68: =SUM(Z68*1000) -> 1730 | X68: 1.620 | Y68: – | Z68: 1.730 | AB68: 66 | AC68: =SUM(AG68*1000) -> 1890 | AD68: – | AE68: =SUM(AI68*1000) -> 1980 | AG68: 1.890 | AH68: – | AI68: 1.980 | AK68: 66 | AL68: =SUM(AP68*1000) -> 2000 | AM68: – | AN68: =SUM(AR68*1000) -> 2120 | AP68: 2.000 | AQ68: – | AR68: 2.120 | AT68: 66 | AU68: =SUM(AY68*1000) -> 2010 | AV68: – | AW68: =SUM(BA68*1000) -> 2060 | AY68: 2.010 | AZ68: – | BA68: 2.060
A69: 67 | B69: 1930 | C69: – | D69: 2040 | F69: 1.930 | G69: – | H69: 2.040 | J69: 67 | K69: 1550 | L69: – | M69: 1610 | O69: 1.550 | P69: – | Q69: 1.610 | S69: 67 | T69: 1620 | U69: – | V69: 1730 | X69: 1.620 | Y69: – | Z69: 1.730 | AB69: 67 | AC69: 1900 | AD69: – | AE69: 1980 | AG69: 1.900 | AH69: – | AI69: 1.980 | AK69: 67 | AL69: 2000 | AM69: – | AN69: 2120 | AP69: 2.000 | AQ69: – | AR69: 2.120 | AT69: 67 | AU69: 2010 | AV69: – | AW69: 2060 | AY69: 2.010 | AZ69: – | BA69: 2.060
A70: 68 | B70: 1930 | C70: – | D70: 2040 | F70: 1.930 | G70: – | H70: 2.040 | J70: 68 | K70: 1550 | L70: – | M70: 1610 | O70: 1.550 | P70: – | Q70: 1.610 | S70: 68 | T70: 1620 | U70: – | V70: 1730 | X70: 1.620 | Y70: – | Z70: 1.730 | AB70: 68 | AC70: 1900 | AD70: – | AE70: 1980 | AG70: 1.900 | AH70: – | AI70: 1.980 | AK70: 68 | AL70: 2000 | AM70: – | AN70: 2120 | AP70: 2.000 | AQ70: – | AR70: 2.120 | AT70: 68 | AU70: 2010 | AV70: – | AW70: 2060 | AY70: 2.010 | AZ70: – | BA70: 2.060
A71: 69 | B71: 1930 | C71: – | D71: 2040 | F71: 1.930 | G71: – | H71: 2.040 | J71: 69 | K71: 1550 | L71: – | M71: 1610 | O71: 1.550 | P71: – | Q71: 1.610 | S71: 69 | T71: 1620 | U71: – | V71: 1730 | X71: 1.620 | Y71: – | Z71: 1.730 | AB71: 69 | AC71: 1900 | AD71: – | AE71: 1980 | AG71: 1.900 | AH71: – | AI71: 1.980 | AK71: 69 | AL71: 2000 | AM71: – | AN71: 2120 | AP71: 2.000 | AQ71: – | AR71: 2.120 | AT71: 69 | AU71: 2010 | AV71: – | AW71: 2060 | AY71: 2.010 | AZ71: – | BA71: 2.060
A72: 70 | B72: 1930 | C72: – | D72: 2040 | F72: 1.930 | G72: – | H72: 2.040 | J72: 70 | K72: 1550 | L72: – | M72: 1610 | O72: 1.550 | P72: – | Q72: 1.610 | S72: 70 | T72: 1620 | U72: – | V72: 1740 | X72: 1.620 | Y72: – | Z72: 1.740 | AB72: 70 | AC72: 1900 | AD72: – | AE72: 1980 | AG72: 1.900 | AH72: – | AI72: 1.980 | AK72: 70 | AL72: 2000 | AM72: – | AN72: 2120 | AP72: 2.000 | AQ72: – | AR72: 2.120 | AT72: 70 | AU72: 2010 | AV72: – | AW72: 2060 | AY72: 2.010 | AZ72: – | BA72: 2.060
A73: 71 | B73: 1930 | C73: – | D73: 2040 | F73: 1.930 | G73: – | H73: 2.040 | J73: 71 | K73: 1550 | L73: – | M73: 1610 | O73: 1.550 | P73: – | Q73: 1.610 | S73: 71 | T73: 1620 | U73: – | V73: 1740 | X73: 1.620 | Y73: – | Z73: 1.740 | AB73: 71 | AC73: 1900 | AD73: – | AE73: 1980 | AG73: 1.900 | AH73: – | AI73: 1.980 | AK73: 71 | AL73: 2000 | AM73: – | AN73: 2120 | AP73: 2.000 | AQ73: – | AR73: 2.120 | AT73: 71 | AU73: 2010 | AV73: – | AW73: 2060 | AY73: 2.010 | AZ73: – | BA73: 2.060
A74: 72 | B74: 1930 | C74: – | D74: 2040 | F74: 1.930 | G74: – | H74: 2.040 | J74: 72 | K74: 1550 | L74: – | M74: 1610 | O74: 1.550 | P74: – | Q74: 1.610 | S74: 72 | T74: 1620 | U74: – | V74: 1740 | X74: 1.620 | Y74: – | Z74: 1.740 | AB74: 72 | AC74: 1900 | AD74: – | AE74: 1980 | AG74: 1.900 | AH74: – | AI74: 1.980 | AK74: 72 | AL74: 2000 | AM74: – | AN74: 2120 | AP74: 2.000 | AQ74: – | AR74: 2.120 | AT74: 72 | AU74: 2010 | AV74: – | AW74: 2060 | AY74: 2.010 | AZ74: – | BA74: 2.060
A75: 73 | B75: 1930 | C75: – | D75: 2040 | F75: 1.930 | G75: – | H75: 2.040 | J75: 73 | K75: 1550 | L75: – | M75: 1610 | O75: 1.550 | P75: – | Q75: 1.610 | S75: 73 | T75: 1630 | U75: – | V75: 1740 | X75: 1.630 | Y75: – | Z75: 1.740 | AB75: 73 | AC75: 1900 | AD75: – | AE75: 1980 | AG75: 1.900 | AH75: – | AI75: 1.980 | AK75: 73 | AL75: 2000 | AM75: – | AN75: 2120 | AP75: 2.000 | AQ75: – | AR75: 2.120 | AT75: 73 | AU75: 2010 | AV75: – | AW75: 2060 | AY75: 2.010 | AZ75: – | BA75: 2.060
A76: 74 | B76: 1930 | C76: – | D76: 2040 | F76: 1.930 | G76: – | H76: 2.040 | J76: 74 | K76: 1550 | L76: – | M76: 1610 | O76: 1.550 | P76: – | Q76: 1.610 | S76: 74 | T76: 1630 | U76: – | V76: 1740 | X76: 1.630 | Y76: – | Z76: 1.740 | AB76: 74 | AC76: 1900 | AD76: – | AE76: 1980 | AG76: 1.900 | AH76: – | AI76: 1.980 | AK76: 74 | AL76: 2000 | AM76: – | AN76: 2120 | AP76: 2.000 | AQ76: – | AR76: 2.120 | AT76: 74 | AU76: 2010 | AV76: – | AW76: 2060 | AY76: 2.010 | AZ76: – | BA76: 2.060
A77: 75 | B77: 1930 | C77: – | D77: 2040 | F77: 1.930 | G77: – | H77: 2.040 | J77: 75 | K77: 1550 | L77: – | M77: 1610 | O77: 1.550 | P77: – | Q77: 1.610 | S77: 75 | T77: 1630 | U77: – | V77: 1740 | X77: 1.630 | Y77: – | Z77: 1.740 | AB77: 75 | AC77: 1900 | AD77: – | AE77: 1990 | AG77: 1.900 | AH77: – | AI77: 1.990 | AK77: 75 | AL77: 2000 | AM77: – | AN77: 2120 | AP77: 2.000 | AQ77: – | AR77: 2.120 | AT77: 75 | AU77: 2010 | AV77: – | AW77: 2060 | AY77: 2.010 | AZ77: – | BA77: 2.060
A78: 76 | B78: 1930 | C78: – | D78: 2040 | F78: 1.930 | G78: – | H78: 2.040 | J78: 76 | K78: 1550 | L78: – | M78: 1610 | O78: 1.550 | P78: – | Q78: 1.610 | S78: 76 | T78: 1630 | U78: – | V78: 1740 | X78: 1.630 | Y78: – | Z78: 1.740 | AB78: 76 | AC78: 1900 | AD78: – | AE78: 1990 | AG78: 1.900 | AH78: – | AI78: 1.990 | AK78: 76 | AL78: 2000 | AM78: – | AN78: 2120 | AP78: 2.000 | AQ78: – | AR78: 2.120 | AT78: 76 | AU78: 2010 | AV78: – | AW78: 2060 | AY78: 2.010 | AZ78: – | BA78: 2.060
A79: 77 | B79: 1930 | C79: – | D79: 2040 | F79: 1.930 | G79: – | H79: 2.040 | J79: 77 | K79: 1550 | L79: – | M79: 1610 | O79: 1.550 | P79: – | Q79: 1.610 | S79: 77 | T79: 1630 | U79: – | V79: 1740 | X79: 1.630 | Y79: – | Z79: 1.740 | AB79: 77 | AC79: 1900 | AD79: – | AE79: 1990 | AG79: 1.900 | AH79: – | AI79: 1.990 | AK79: 77 | AL79: 2000 | AM79: – | AN79: 2120 | AP79: 2.000 | AQ79: – | AR79: 2.120 | AT79: 77 | AU79: 2010 | AV79: – | AW79: 2060 | AY79: 2.010 | AZ79: – | BA79: 2.060
A80: 78 | B80: 1930 | C80: – | D80: 2040 | F80: 1.930 | G80: – | H80: 2.040 | J80: 78 | K80: 1550 | L80: – | M80: 1610 | O80: 1.550 | P80: – | Q80: 1.610 | S80: 78 | T80: 1630 | U80: – | V80: 1740 | X80: 1.630 | Y80: – | Z80: 1.740 | AB80: 78 | AC80: 1900 | AD80: – | AE80: 1990 | AG80: 1.900 | AH80: – | AI80: 1.990 | AK80: 78 | AL80: 2000 | AM80: – | AN80: 2120 | AP80: 2.000 | AQ80: – | AR80: 2.120 | AT80: 78 | AU80: 2010 | AV80: – | AW80: 2060 | AY80: 2.010 | AZ80: – | BA80: 2.060
A81: 79 | B81: 1930 | C81: – | D81: 2040 | F81: 1.930 | G81: – | H81: 2.040 | J81: 79 | K81: 1550 | L81: – | M81: 1610 | O81: 1.550 | P81: – | Q81: 1.610 | S81: 79 | T81: 1630 | U81: – | V81: 1740 | X81: 1.630 | Y81: – | Z81: 1.740 | AB81: 79 | AC81: 1900 | AD81: – | AE81: 1990 | AG81: 1.900 | AH81: – | AI81: 1.990 | AK81: 79 | AL81: 2000 | AM81: – | AN81: 2120 | AP81: 2.000 | AQ81: – | AR81: 2.120 | AT81: 79 | AU81: 2010 | AV81: – | AW81: 2060 | AY81: 2.010 | AZ81: – | BA81: 2.060
A82: 80 | B82: 1930 | C82: – | D82: 2040 | F82: 1.930 | G82: – | H82: 2.040 | J82: 80 | K82: 1550 | L82: – | M82: 1610 | O82: 1.550 | P82: – | Q82: 1.610 | S82: 80 | T82: 1630 | U82: – | V82: 1740 | X82: 1.630 | Y82: – | Z82: 1.740 | AB82: 80 | AC82: 1900 | AD82: – | AE82: 1990 | AG82: 1.900 | AH82: – | AI82: 1.990 | AK82: 80 | AL82: 2000 | AM82: – | AN82: 2120 | AP82: 2.000 | AQ82: – | AR82: 2.120 | AT82: 80 | AU82: 2010 | AV82: – | AW82: 2060 | AY82: 2.010 | AZ82: – | BA82: 2.060
A83: 81 | B83: 1930 | C83: – | D83: 2040 | F83: 1.930 | G83: – | H83: 2.040 | J83: 81 | K83: 1550 | L83: – | M83: 1610 | O83: 1.550 | P83: – | Q83: 1.610 | S83: 81 | T83: 1630 | U83: – | V83: 1740 | X83: 1.630 | Y83: – | Z83: 1.740 | AB83: 81 | AC83: 1910 | AD83: – | AE83: 2000 | AG83: 1.910 | AH83: – | AI83: 2.000 | AK83: 81 | AL83: 1630 | AM83: – | AN83: 1740 | AP83: 1.630 | AQ83: – | AR83: 1.740 | AT83: 81 | AU83: 2010 | AV83: – | AW83: 2060 | AY83: 2.010 | AZ83: – | BA83: 2.060
A84: 82 | B84: 1930 | C84: – | D84: 2040 | F84: 1.930 | G84: – | H84: 2.040 | J84: 82 | K84: 1550 | L84: – | M84: 1610 | O84: 1.550 | P84: – | Q84: 1.610 | S84: 82 | T84: 1630 | U84: – | V84: 1740 | X84: 1.630 | Y84: – | Z84: 1.740 | AB84: 82 | AC84: 1910 | AD84: – | AE84: 2000 | AG84: 1.910 | AH84: – | AI84: 2.000 | AK84: 82 | AL84: 1630 | AM84: – | AN84: 1740 | AP84: 1.630 | AQ84: – | AR84: 1.740 | AT84: 82 | AU84: 2010 | AV84: – | AW84: 2060 | AY84: 2.010 | AZ84: – | BA84: 2.060
A85: 83 | B85: 1930 | C85: – | D85: 2040 | F85: 1.930 | G85: – | H85: 2.040 | J85: 83 | K85: =O85*1000 -> 1550 | L85: – | M85: =Q85*1000 -> 1610 | O85: 1.550 | P85: – | Q85: 1.610 | S85: 83 | T85: 1640 | U85: – | V85: 1740 | X85: 1.640 | Y85: – | Z85: 1.740 | AB85: 83 | AC85: 1910 | AD85: – | AE85: 2000 | AG85: 1.910 | AH85: – | AI85: 2.000 | AK85: 83 | AL85: 1640 | AM85: – | AN85: 1740 | AP85: 1.640 | AQ85: – | AR85: 1.740 | AT85: 83 | AU85: 2010 | AV85: – | AW85: 2060 | AY85: 2.010 | AZ85: – | BA85: 2.060
A86: 84 | B86: 1930 | C86: – | D86: 2040 | F86: 1.930 | G86: – | H86: 2.040 | J86: 84 | K86: 1550 | L86: – | M86: 1610 | O86: 1.550 | P86: – | Q86: 1.610 | S86: 84 | T86: 1640 | U86: – | V86: 1740 | X86: 1.640 | Y86: – | Z86: 1.740 | AB86: 84 | AC86: 1910 | AD86: – | AE86: 2000 | AG86: 1.910 | AH86: – | AI86: 2.000 | AK86: 84 | AL86: 1640 | AM86: – | AN86: 1740 | AP86: 1.640 | AQ86: – | AR86: 1.740 | AT86: 84 | AU86: 2010 | AV86: – | AW86: 2060 | AY86: 2.010 | AZ86: – | BA86: 2.060
A87: 85 | B87: 1930 | C87: – | D87: 2040 | F87: 1.930 | G87: – | H87: 2.040 | J87: 85 | K87: 1550 | L87: – | M87: 1610 | O87: 1.550 | P87: – | Q87: 1.610 | S87: 85 | T87: 1640 | U87: – | V87: 1740 | X87: 1.640 | Y87: – | Z87: 1.740 | AB87: 85 | AC87: 1910 | AD87: – | AE87: 2000 | AG87: 1.910 | AH87: – | AI87: 2.000 | AK87: 85 | AL87: 1640 | AM87: – | AN87: 1740 | AP87: 1.640 | AQ87: – | AR87: 1.740 | AT87: 85 | AU87: 2010 | AV87: – | AW87: 2060 | AY87: 2.010 | AZ87: – | BA87: 2.060
A88: 86 | B88: 1930 | C88: – | D88: 2040 | F88: 1.930 | G88: – | H88: 2.040 | J88: 86 | K88: 1550 | L88: – | M88: 1610 | O88: 1.550 | P88: – | Q88: 1.610 | S88: 86 | T88: 1640 | U88: – | V88: 1740 | X88: 1.640 | Y88: – | Z88: 1.740 | AB88: 86 | AC88: 1910 | AD88: – | AE88: 2000 | AG88: 1.910 | AH88: – | AI88: 2.000 | AK88: 86 | AL88: 1640 | AM88: – | AN88: 1740 | AP88: 1.640 | AQ88: – | AR88: 1.740 | AT88: 86 | AU88: 2010 | AV88: – | AW88: 2060 | AY88: 2.010 | AZ88: – | BA88: 2.060
A89: 87 | B89: 1930 | C89: – | D89: 2040 | F89: 1.930 | G89: – | H89: 2.040 | J89: 87 | K89: 1550 | L89: – | M89: 1610 | O89: 1.550 | P89: – | Q89: 1.610 | S89: 87 | T89: 1640 | U89: – | V89: 1740 | X89: 1.640 | Y89: – | Z89: 1.740 | AB89: 87 | AC89: 1910 | AD89: – | AE89: 2000 | AG89: 1.910 | AH89: – | AI89: 2.000 | AK89: 87 | AL89: 1640 | AM89: – | AN89: 1740 | AP89: 1.640 | AQ89: – | AR89: 1.740 | AT89: 87 | AU89: 2010 | AV89: – | AW89: 2060 | AY89: 2.010 | AZ89: – | BA89: 2.060
A90: 88 | B90: 1930 | C90: – | D90: 2040 | F90: 1.930 | G90: – | H90: 2.040 | J90: 88 | K90: 1550 | L90: – | M90: 1610 | O90: 1.550 | P90: – | Q90: 1.610 | S90: 88 | T90: 1640 | U90: – | V90: 1740 | X90: 1.640 | Y90: – | Z90: 1.740 | AB90: 88 | AC90: 1910 | AD90: – | AE90: 2000 | AG90: 1.910 | AH90: – | AI90: 2.000 | AK90: 88 | AL90: 1640 | AM90: – | AN90: 1740 | AP90: 1.640 | AQ90: – | AR90: 1.740 | AT90: 88 | AU90: 2010 | AV90: – | AW90: 2060 | AY90: 2.010 | AZ90: – | BA90: 2.060
A91: 89 | B91: 1930 | C91: – | D91: 2040 | F91: 1.930 | G91: – | H91: 2.040 | J91: 89 | K91: 1550 | L91: – | M91: 1610 | O91: 1.550 | P91: – | Q91: 1.610 | S91: 89 | T91: 1640 | U91: – | V91: 1740 | X91: 1.640 | Y91: – | Z91: 1.740 | AB91: 89 | AC91: 1910 | AD91: – | AE91: 2000 | AG91: 1.910 | AH91: – | AI91: 2.000 | AK91: 89 | AL91: 1640 | AM91: – | AN91: 1740 | AP91: 1.640 | AQ91: – | AR91: 1.740 | AT91: 89 | AU91: 2010 | AV91: – | AW91: 2060 | AY91: 2.010 | AZ91: – | BA91: 2.060
A92: 90 | B92: 1930 | C92: – | D92: 2040 | F92: 1.930 | G92: – | H92: 2.040 | J92: 90 | K92: 1550 | L92: – | M92: 1610 | O92: 1.550 | P92: – | Q92: 1.610 | S92: 90 | T92: 1640 | U92: – | V92: 1740 | X92: 1.640 | Y92: – | Z92: 1.740 | AB92: 90 | AC92: 1910 | AD92: – | AE92: 2000 | AG92: 1.910 | AH92: – | AI92: 2.000 | AK92: 90 | AL92: 1640 | AM92: – | AN92: 1740 | AP92: 1.640 | AQ92: – | AR92: 1.740 | AT92: 90 | AU92: 2010 | AV92: – | AW92: 2060 | AY92: 2.010 | AZ92: – | BA92: 2.060
A93: 91 | B93: =SUM(F93*1000) -> 1940 | C93: – | D93: =SUM(H93*1000) -> 2050 | F93: 1.94 | G93: – | H93: 2.05 | J93: 91 | K93: =O93*1000 -> 1550 | L93: – | M93: =Q93*1000 -> 1610 | O93: 1.55 | P93: – | Q93: 1.61 | S93: 91 | T93: 1650 | U93: – | V93: 1750 | X93: 1.65 | Y93: – | Z93: 1.75
A94: 92 | B94: 1940 | C94: – | D94: 2050 | F94: 1.94 | G94: – | H94: 2.05 | J94: 92 | K94: 1550 | L94: – | M94: 1610 | O94: 1.55 | P94: – | Q94: 1.61 | S94: 92 | T94: 1650 | U94: – | V94: 1750 | X94: 1.65 | Y94: – | Z94: 1.75
A95: 93 | B95: 1940 | C95: – | D95: 2050 | F95: 1.94 | G95: – | H95: 2.05 | J95: 93 | K95: 1550 | L95: – | M95: 1610 | O95: 1.55 | P95: – | Q95: 1.61 | S95: 93 | T95: 1650 | U95: – | V95: 1750 | X95: 1.65 | Y95: – | Z95: 1.75
A96: 94 | B96: 1940 | C96: – | D96: 2050 | F96: 1.94 | G96: – | H96: 2.05 | J96: 94 | K96: 1550 | L96: – | M96: 1610 | O96: 1.55 | P96: – | Q96: 1.61 | S96: 94 | T96: 1650 | U96: – | V96: 1750 | X96: 1.65 | Y96: – | Z96: 1.75
A97: 95 | B97: 1940 | C97: – | D97: 2050 | F97: 1.94 | G97: – | H97: 2.05 | J97: 95 | K97: 1550 | L97: – | M97: 1610 | O97: 1.55 | P97: – | Q97: 1.61 | S97: 95 | T97: 1650 | U97: – | V97: 1750 | X97: 1.65 | Y97: – | Z97: 1.75
A98: 96 | B98: 1940 | C98: – | D98: 2050 | F98: 1.94 | G98: – | H98: 2.05 | J98: 96 | K98: 1550 | L98: – | M98: 1610 | O98: 1.55 | P98: – | Q98: 1.61 | S98: 96 | T98: 1660 | U98: – | V98: 1760 | X98: 1.66 | Y98: – | Z98: 1.76
A99: 97 | B99: 1940 | C99: – | D99: 2050 | F99: 1.94 | G99: – | H99: 2.05 | J99: 97 | K99: 1550 | L99: – | M99: 1610 | O99: 1.55 | P99: – | Q99: 1.61 | S99: 97 | T99: 1660 | U99: – | V99: 1760 | X99: 1.66 | Y99: – | Z99: 1.76
A100: 98 | B100: 1940 | C100: – | D100: 2050 | F100: 1.94 | G100: – | H100: 2.05 | J100: 98 | K100: 1550 | L100: – | M100: 1610 | O100: 1.55 | P100: – | Q100: 1.61 | S100: 98 | T100: 1660 | U100: – | V100: 1760 | X100: 1.66 | Y100: – | Z100: 1.76
A101: 99 | B101: 1940 | C101: – | D101: 2050 | F101: 1.94 | G101: – | H101: 2.05 | J101: 99 | K101: 1550 | L101: – | M101: 1610 | O101: 1.55 | P101: – | Q101: 1.61 | S101: 99 | T101: 1660 | U101: – | V101: 1760 | X101: 1.66 | Y101: – | Z101: 1.76
A102: 100 | B102: 1940 | C102: – | D102: 2050 | F102: 1.94 | G102: – | H102: 2.05 | J102: 100 | K102: 1550 | L102: – | M102: 1610 | O102: 1.55 | P102: – | Q102: 1.61 | S102: 100 | T102: 1660 | U102: – | V102: 1760 | X102: 1.66 | Y102: – | Z102: 1.76
